2CCN - Level 2 Cost Centre Name,,9CCN - Level 9 Cost Centre Name,9CCC - Level 9 Cost Centre Code,9AN - Level 9 Account Name,9AC - Level 9 Account Code,Transaction Description,Date Paid,Transaction Reference,Analysed Amount,2AC - Level 2 Account Codes,Supplier Name,Supplier Code
Gloucester City Council,23UE,Client Revs & Bens Contract,RT240,Bailiffs Fees,5368,VAT only invoice,05/01/2016,412394,0,NET,Bristow & Sutor,05450M
Gloucester City Council,23UE,Crematorium,HC200,Cleaning Materials,3600,Disposal Unit Servicing,05/01/2016,412125,17.28,NET,Minster Cleaning Services,02158R
Gloucester City Council,23UE,Utilities,PT502,Electricity Supply,3110,UTILITIES TO DEC 2015,05/01/2016,412301,41801.38,NET,West Mercia Energy,11669Z
Gloucester City Council,23UE,Utilities,PT502,Gas Supply,3100,UTILITIES TO DEC 2015,05/01/2016,412301,0.84,NET,West Mercia Energy,11669Z
Gloucester City Council,23UE,Crematorium,HC200,Fees For Services Received,5350,CREM FEES DEC 15,06/01/2016,412638,1058.64,NET,Dr C M Stretton,00306P
Gloucester City Council,23UE,Crematorium,HC200,Fees For Services Received,5350,CREM FEES DEC 2015,06/01/2016,412639,568.88,NET,Dr R W Bell,01571P
Gloucester City Council,23UE,Crematorium,HC200,Fees For Services Received,5350,CREM FEES DEC 2015,06/01/2016,412640,1152.4,NET,Dr D Martin,00890P
Gloucester City Council,23UE,Crematorium,HC200,Oper Leases - Equipment,5029,church candles,06/01/2016,412496,54.4,NET,The Candlelight Company,10270X
Gloucester City Council,23UE,Development Management,PT200,Advertising And Publicity,5702,adverts 17/12/15,06/01/2016,412512,262.94,NET,Local World Ltd,08556P
Gloucester City Council,23UE,Development Management,PT200,Basic Pay - Temporary Staff,2751,temporary staff w/e 20/12/15,06/01/2016,412582,1606.75,NET,The Oyster Partnership Limited,14900T
Gloucester City Council,23UE,Environmental Planning,LM340,Operational Materials,5070,Hucclecote/Green Lane signs,06/01/2016,412514,138.93,NET,Severn Signs Ltd,49841D
Gloucester City Council,23UE,Internal Health & Safety,EH110,Other Minor Supplies Services,5590,adverts 24/12/15,06/01/2016,412590,58.43,NET,Local World Ltd,08556P
Gloucester City Council,23UE,Investment Property,RB500,Water Supply,3400,CREDIT TAKEN IN ERROR,06/01/2016,412637,1831.53,NET,Severn Trent Water,01823H
Gloucester City Council,23UE,Vehicles,RS140,Fuel,4012,vehicle fuel,06/01/2016,412567,134.96,NET,Allstar Business Solutions Ltd (Arval),06594A
Gloucester City Council,23UE,REDACTED,REDACTED,REDACTED,REDACTED,REDACTED,07/01/2016,REDACTED,19.25,NET,REDACTED,REDACTED
Gloucester City Council,23UE,REDACTED,REDACTED,REDACTED,REDACTED,REDACTED,07/01/2016,REDACTED,232.4,NET,REDACTED,REDACTED
Gloucester City Council,23UE,Homelessness,CH120,Rent In Advance,5516,REDACTED,07/01/2016,412773,641.53,NET,Surelet,06858N
Gloucester City Council,23UE,Homelessness,CH120,Rent In Advance,5516,REDACTED,07/01/2016,412772,489.44,NET,Barton & Tredworth Developments Ltd,58165T
Gloucester City Council,23UE,REDACTED,REDACTED,REDACTED,REDACTED,REDACTED,07/01/2016,REDACTED,258.46,NET,REDACTED,REDACTED
Gloucester City Council,23UE,Homelessness Prevention,CH122,Fees For Services Received,5350,REDACTED,07/01/2016,412773,800,NET,Surelet,06858N
Gloucester City Council,23UE,Homelessness Prevention,CH122,Fees For Services Received,5350,REDACTED,07/01/2016,412772,550,NET,Barton & Tredworth Developments Ltd,58165T
Gloucester City Council,23UE,REDACTED,REDACTED,REDACTED,REDACTED,REDACTED,07/01/2016,REDACTED,280,NET,REDACTED,REDACTED
Gloucester City Council,23UE,Investment Property,RB500,General Repair/Maint Buildings,3000,Engineer 02/12/2015,07/01/2016,412276,647.38,NET,Adt Fire & Security Plc,54086D
Gloucester City Council,23UE,Off Street Car Parks,PP110,Computer Software Maintenance,5427,Bank Charges Sep & Oct 2015,07/01/2016,412277,2749.2,NET,Chipside Ltd,06535T
Gloucester City Council,23UE,Contact Centre,RB300,Stationery,5302,STATIONERY,08/01/2016,412578,61.18,NET,Lyreco Uk Ltd,11746G
Gloucester City Council,23UE,REDACTED,REDACTED,REDACTED,REDACTED,REDACTED,08/01/2016,REDACTED,530,NET,REDACTED,REDACTED
Gloucester City Council,23UE,The Arbor,HC501,Operational Equipment <5000,5012,"vases, wine glasses & jug",08/01/2016,412592,63.77,NET,Nisbets,55372P
Gloucester City Council,23UE,Coll Fund Revenue Account,ZC100,County Council Precept,7460,PRECEPT PAYMENT JANUARY 2016,11/01/2016,412824,3893978.2,NET,Gloucestershire County Council,18650D
Gloucester City Council,23UE,Coll Fund Revenue Account,ZC100,Nndr Central Share,7474,BRR POOLING PAYMENT JAN16,11/01/2016,412822,421339,NET,Gloucestershire County Council,18650D
Gloucester City Council,23UE,Coll Fund Revenue Account,ZC100,Nndr Tariff,7473,BRR POOLING PAYMENT JAN16,11/01/2016,412821,1320307,NET,Stroud District Council,74737T
Gloucester City Council,23UE,Coll Fund Revenue Account,ZC100,Police Precept,7461,PRECEPT PAYMENT JANUARY 2016,11/01/2016,412823,741766.3,NET,"Police & Crime Commissioner, Gloucestershire",49521B
Gloucester City Council,23UE,Employers Pension Contribs,ZR355,Pension Contribs Incl Backf,2901,pension deficit for GCC DEC15,11/01/2016,412820,217666.66,NET,Gloucestershire County Council,10614L
Gloucester City Council,23UE,Guildhall Lettings,LA400,Events Income,9202,Client Sessions,11/01/2016,412799,90,NET,Gloucestershire Music Makers,13755L
Gloucester City Council,23UE,Guildhall Lettings,LA400,Sale Of Goods And Services,9230,Client Sessions,11/01/2016,412799,-18,NET,Gloucestershire Music Makers,13755L
Gloucester City Council,23UE,REDACTED,REDACTED,REDACTED,REDACTED,REDACTED,11/01/2016,REDACTED,270,NET,REDACTED,REDACTED
Gloucester City Council,23UE,REDACTED,REDACTED,REDACTED,REDACTED,REDACTED,11/01/2016,REDACTED,123,NET,REDACTED,REDACTED
Gloucester City Council,23UE,Blackfriars,LA609,Advertising And Publicity,5702,VENUE LISTING,12/01/2016,412662,629.1,NET,Hitched Limited,16221C
Gloucester City Council,23UE,Blackfriars,LA609,Security Services Fees,5351,Door Staff November 2015,12/01/2016,412767,475,NET,Nsgl Ltd (Security Acct),12539E
Gloucester City Council,23UE,Blackfriars Catering,LA220,Catering Provisions -Liquor,5111,Blackfriars - Gloucester Gold,12/01/2016,412819,102,NET,Gloucester Brewery,13373F
Gloucester City Council,23UE,Business Transformation & Tech,RT700,Internet Service Provider Fees,5429,acct 505653401 JAN16,12/01/2016,412488,80,NET,Virgin Media Payments Ltd,09376J
Gloucester City Council,23UE,Business Transformation & Tech,RT700,Internet Service Provider Fees,5429,Blueyonder Charges Dec 15 - Jan 16,12/01/2016,412155,80,NET,Virgin Media Payments Ltd,09376J
Gloucester City Council,23UE,Business Transformation & Tech,RT700,Internet Service Provider Fees,5429,Broadband Charges Dec 15 -Jan 16,12/01/2016,412157,30,NET,Virgin Media Payments Ltd,09376J
Gloucester City Council,23UE,Business Transformation & Tech,RT700,Internet Service Provider Fees,5429,Charges Dec 15 - Jan 16,12/01/2016,412422,116.37,NET,Virgin Media Business,01869B
Gloucester City Council,23UE,Business Transformation & Tech,RT700,Internet Service Provider Fees,5429,charges JUL-SEP15,12/01/2016,410923,3830.42,NET,Vodafone Ltd,11843H
Gloucester City Council,23UE,Business Transformation & Tech,RT700,Internet Service Provider Fees,5429,User Charge Dec 15 - Jan 16,12/01/2016,412154,33,NET,Virgin Media Payments Ltd,09376J
Gloucester City Council,23UE,Business Transformation & Tech,RT700,Photocopying,5320,SEP-DEC15 plotter/copier maintenance,12/01/2016,412365,101.13,NET,Stanford Marsh Ltd,51139M
Gloucester City Council,23UE,Business Transformation & Tech,RT700,Telephones And Fax,5410,Line Rental Dec 15 - Jan 16,12/01/2016,412156,16.99,NET,Virgin Media Payments Ltd,09376J
Gloucester City Council,23UE,Cemeteries,HC300,Routine R And M - Vehicles,4011,WHEEL,12/01/2016,412682,68.1,NET,Frank Sutton Ltd - Agric'L Engineer,42875D
Gloucester City Council,23UE,Cemeteries,HC300,Tyres,4014,BUGGY TYRE REPAIRS,12/01/2016,412683,61.3,NET,Ats Euromaster Ltd,06005E
Gloucester City Council,23UE,Cems/Crems Admin,HC100,Office Equipment <5000,5010,SAMSUNG INK CARTRIDGE,12/01/2016,412678,148,NET,Office Star Group Ltd,55874H
Gloucester City Council,23UE,City Museum And Art Gallery,LM200,Advertising And Publicity,5702,JAN/MAR16 BROCHURE DISTRIBUTION,12/01/2016,412708,373.5,NET,Glide Media,58829J
Gloucester City Council,23UE,City Museum And Art Gallery,LM200,Contents Insurance,5700,EXPLORE GLOUCESTERSHIRE 2016,12/01/2016,412700,500,NET,Cds Publications,59644P
Gloucester City Council,23UE,City Museum And Art Gallery,LM200,Printing,5300,Whats on Booklets,12/01/2016,412656,807.5,NET,Paddock Print,03014H
Gloucester City Council,23UE,City Museum Catering,LM202,Catering Provisions -Food,5110,coffee beans,12/01/2016,411553,84.5,NET,James Gourmet Coffee Co.,55049A
Gloucester City Council,23UE,City Museum Catering,LM202,Catering Provisions -Liquor,5111,Westons Wyld Wood Organic,12/01/2016,412019,77.96,NET,Cellar Supplies Cheltenham Ltd,01563L
Gloucester City Council,23UE,Civic Admin And Hospitality,RC210,Hospitality,5122,comms & media coaching 15/9/15,12/01/2016,412309,417.25,NET,Gloucestershire County Council,18650D
Gloucester City Council,23UE,Cleansing Services Admin,HI100,Fees For Services Received,5350,wood recycling,12/01/2016,412380,1662,NET,Enterprise (Aol) Ltd,06695G
Gloucester City Council,23UE,Client Revs & Bens Contract,RT240,Bailiffs Fees,5368,Dukes direct payment & VAT due,12/01/2016,412368,3074.03,NET,Civica Uk Ltd,10841X
Gloucester City Council,23UE,Client Revs & Bens Contract,RT240,Fees For Services Received,5350,Dukes direct payment & VAT due,12/01/2016,412368,508.46,NET,Civica Uk Ltd,10841X
Gloucester City Council,23UE,Contact Centre,RB300,Basic Pay - Temporary Staff,2751,Temporary staff w/e 25/12/15 & 01/01/16,12/01/2016,412721,293.48,NET,One To One Recruitment,04752H
Gloucester City Council,23UE,Contact Centre,RB300,Postages,5400,acct 0878585006 DEC15,12/01/2016,412486,787,NET,Royal Mail S.Wales & South West,35830S
Gloucester City Council,23UE,Council Streetcare Team,HI101,Water Supply,3400,ACCT 6480048672,12/01/2016,411964,70.3,NET,Severn Trent Water,01823H
Gloucester City Council,23UE,Crematorium,HC200,Printing,5300,SAMSUNG INK CARTRIDGE,12/01/2016,412678,131.9,NET,Office Star Group Ltd,55874H
Gloucester City Council,23UE,Development Management,PT200,Advertising And Publicity,5702,Advert 18DEC15,12/01/2016,412494,146.08,NET,Local World Ltd,08556P
Gloucester City Council,23UE,Development Management,PT200,Advertising And Publicity,5702,adverts 24/12/15,12/01/2016,412591,292.16,NET,Local World Ltd,08556P
Gloucester City Council,23UE,Docks Complex - Services,RB100,Service Charges,3020,rental FEB-MAY16 & annual service fee,12/01/2016,412571,212.57,NET,Siemens Financial Services Ltd,08349H
Gloucester City Council,23UE,Docks Complex - Services,RB100,Service Charges,3020,trade waste charged JAN-MAR16,12/01/2016,412492,10926.91,NET,Enterprise (Aol) Ltd,06695G
Gloucester City Council,23UE,Dog Warden,HE400,Other Minor Supplies Services,5590,Stray Dogs,12/01/2016,412381,312.5,NET,Enterprise (Aol) Ltd,06695G
Gloucester City Council,23UE,Folk Museum,LM210,Advertising And Publicity,5702,EXPLORE GLOUCESTERSHIRE 2016,12/01/2016,412700,500,NET,Cds Publications,59644P
Gloucester City Council,23UE,Folk Museum,LM210,Advertising And Publicity,5702,JAN/MAR16 BROCHURE DISTRIBUTION,12/01/2016,412708,373.5,NET,Glide Media,58829J
Gloucester City Council,23UE,Folk Museum,LM210,Printing,5300,Whats on Booklets,12/01/2016,412656,807.5,NET,Paddock Print,03014H
Gloucester City Council,23UE,REDACTED,REDACTED,REDACTED,REDACTED,REDACTED,12/01/2016,REDACTED,323,CAP,REDACTED,REDACTED
Gloucester City Council,23UE,REDACTED,REDACTED,REDACTED,REDACTED,REDACTED,12/01/2016,REDACTED,218.5,CAP,REDACTED,REDACTED
Gloucester City Council,23UE,Green Garden Waste,HI105,Basic Pay - Temporary Staff,2751,temporary staff w/e 18/12/2015,12/01/2016,412719,558,NET,One To One Recruitment,04752H
Gloucester City Council,23UE,Green Garden Waste,HI105,Basic Pay - Temporary Staff,2751,temporary staff w/e 25/12/2015,12/01/2016,412720,317.75,NET,One To One Recruitment,04752H
Gloucester City Council,23UE,Guildhall Bar And Caf�,LA210,Catering Provisions -Food,5110,food,12/01/2016,412245,83.6,NET,Janes Pantry,24500W
Gloucester City Council,23UE,Guildhall Bar And Caf�,LA210,Catering Provisions -Liquor,5111,Gloucester Gold,12/01/2016,412818,114,NET,Gloucester Brewery,13373F
Gloucester City Council,23UE,REDACTED,REDACTED,REDACTED,REDACTED,REDACTED,12/01/2016,REDACTED,50,NET,REDACTED,REDACTED
Gloucester City Council,23UE,REDACTED,REDACTED,REDACTED,REDACTED,REDACTED,12/01/2016,REDACTED,100,NET,REDACTED,REDACTED
Gloucester City Council,23UE,Guildhall Events,LA200,Security Services Fees,5351,Door Staff December 2015,12/01/2016,412768,1158.38,NET,Nsgl Ltd (Security Acct),12539E
Gloucester City Council,23UE,Guildhall Events,LA200,Security Services Fees,5351,Door Staff November 2015,12/01/2016,412767,201.5,NET,Nsgl Ltd (Security Acct),12539E
Gloucester City Council,23UE,Head Of Financial Services,GO100,Vocational Training,2970,Spending Review 2015 & Local Govt Finance Reform conference,12/01/2016,412652,150,NET,Lg Futures,11251S
Gloucester City Council,23UE,Homelessness,CH120,Board And Lodging,5515,various tenants,12/01/2016,412817,1896.74,NET,James Legge Property (Ltd),07844R
Gloucester City Council,23UE,Homelessness,CH120,Board And Lodging,5515,various tenants,12/01/2016,412812,317.54,NET,Carbrey Housing Ltd,11098G
Gloucester City Council,23UE,Homelessness,CH120,Board And Lodging,5515,various tenants,12/01/2016,412813,549.69,NET,Kalmwood Ltd,08568G
Gloucester City Council,23UE,Homelessness,CH120,Board And Lodging,5515,various tenants,12/01/2016,412815,6679.6,NET,REDACTED,REDACTED
Gloucester City Council,23UE,Homelessness,CH120,Board And Lodging,5515,various tenants,12/01/2016,412814,903.94,NET,Dorchester Guest House,12298D
Gloucester City Council,23UE,REDACTED,REDACTED,REDACTED,REDACTED,REDACTED,12/01/2016,REDACTED,98.29,NET,REDACTED,REDACTED
Gloucester City Council,23UE,REDACTED,REDACTED,REDACTED,REDACTED,REDACTED,12/01/2016,REDACTED,1811.05,NET,REDACTED,REDACTED
Gloucester City Council,23UE,Homelessness,CH120,Rent In Advance,5516,REDACTED,12/01/2016,412830,368.2,NET,Chawda Holdings Ltd,08904N
Gloucester City Council,23UE,REDACTED,REDACTED,REDACTED,REDACTED,REDACTED,12/01/2016,REDACTED,272.72,NET,REDACTED,REDACTED
Gloucester City Council,23UE,REDACTED,REDACTED,REDACTED,REDACTED,REDACTED,12/01/2016,REDACTED,489.44,NET,REDACTED,REDACTED
Gloucester City Council,23UE,Homelessness Prevention,CH122,Basic Pay - Temporary Staff,2751,TEMPORARY STAFF W/E 20/12/15,12/01/2016,412714,666.5,NET,Greenacre Recruitment Ltd,15817V
Gloucester City Council,23UE,Homelessness Prevention,CH122,Basic Pay - Temporary Staff,2751,TEMPORARY STAFF W/E 27/12/15,12/01/2016,412715,333.25,NET,Greenacre Recruitment Ltd,15817V
Gloucester City Council,23UE,Homelessness Prevention,CH122,Fees For Services Received,5350,REDACTED,12/01/2016,412830,500,NET,Chawda Holdings Ltd,08904N
Gloucester City Council,23UE,REDACTED,REDACTED,REDACTED,REDACTED,REDACTED,12/01/2016,REDACTED,368.2,NET,REDACTED,REDACTED
Gloucester City Council,23UE,REDACTED,REDACTED,REDACTED,REDACTED,REDACTED,12/01/2016,REDACTED,500,NET,REDACTED,REDACTED
Gloucester City Council,23UE,Investment Property,RB500,Lift Maintenance,3051,Guildhall lift repair 16/12/15,12/01/2016,412593,187.5,NET,Pickerings Europe Ltd,58816U
Gloucester City Council,23UE,REDACTED,REDACTED,REDACTED,REDACTED,REDACTED,12/01/2016,REDACTED,400,NET,REDACTED,REDACTED
Gloucester City Council,23UE,Meet & Greet,FP309,Other Minor Income,9900,ADVERT,12/01/2016,412694,285,NET,Yandell Publishing Ltd,14956N
Gloucester City Council,23UE,Northwarehouse,RB150,Lift Maintenance,3051,N Warehouse FEB-MAY15 service,12/01/2016,412554,689.62,NET,Schindler Ltd,06826C
Gloucester City Council,23UE,Off Street Car Parks,PP110,Fees For Services Received,5350,service for parking equipment JAN16,12/01/2016,412503,534.78,NET,Parkeon Ltd,03238G
Gloucester City Council,23UE,Off Street Car Parks,PP110,Service Charges,3020,trade refuse JAN-MAR16,12/01/2016,412575,286.25,NET,Enterprise (Aol) Ltd,06695G
Gloucester City Council,23UE,Rehousing,CH111,Fees For Services Received,5350,MEDICAL REPORT,12/01/2016,412698,20.5,NET,Bartongate Surgery,05680S
Gloucester City Council,23UE,Retail Market - Landlord,HM300,Cleaning / Domestic Equipment,5011,JAN16 towel hire,12/01/2016,412584,19.87,NET,Initial Washroom Solutions,06143R
Gloucester City Council,23UE,Retail Market - Landlord,HM300,Operational Equipment <5000,5012,JAN16 COMPACTOR RENTAL,12/01/2016,412661,280.56,NET,System Rental Uk Ltd,03239E
Gloucester City Council,23UE,The Arbor,HC501,Catering Provisions -Food,5110,DRINKS,12/01/2016,412665,92.51,NET,Cellar Supplies Cheltenham Ltd,01563L
Gloucester City Council,23UE,The Arbor,HC501,Catering Provisions -Food,5110,DRINKS,12/01/2016,412666,30.98,NET,Cellar Supplies Cheltenham Ltd,01563L
Gloucester City Council,23UE,The Arbor,HC501,Catering Provisions -Food,5110,DRINKS,12/01/2016,412671,68.54,NET,Cellar Supplies Cheltenham Ltd,01563L
Gloucester City Council,23UE,The Arbor,HC501,Catering Provisions -Food,5110,Food,12/01/2016,412717,528.45,NET,Bidvest Foodservice (3663),55585U
Gloucester City Council,23UE,The Arbor,HC501,Catering Provisions -Food,5110,Food,12/01/2016,412722,326.19,NET,Bidvest Foodservice (3663),55585U
Gloucester City Council,23UE,The Arbor,HC501,Catering Provisions -Food,5110,Food,12/01/2016,412723,130,NET,Bidvest Foodservice (3663),55585U
Gloucester City Council,23UE,The Arbor,HC501,Catering Provisions -Food,5110,Food,12/01/2016,412724,378.53,NET,Bidvest Foodservice (3663),55585U
Gloucester City Council,23UE,The Arbor,HC501,Catering Provisions -Food,5110,Food,12/01/2016,412725,177.06,NET,Bidvest Foodservice (3663),55585U
Gloucester City Council,23UE,The Arbor,HC501,Catering Provisions -Food,5110,Food,12/01/2016,412726,72.56,NET,Bidvest Foodservice (3663),55585U
Gloucester City Council,23UE,The Arbor,HC501,Catering Provisions -Food,5110,Food,12/01/2016,412727,41.55,NET,Total Produce Gloucester,12645E
Gloucester City Council,23UE,The Arbor,HC501,Catering Provisions -Food,5110,Food,12/01/2016,412728,36.99,NET,Total Produce Gloucester,12645E
Gloucester City Council,23UE,The Arbor,HC501,Catering Provisions -Food,5110,Food,12/01/2016,412729,17.78,NET,Total Produce Gloucester,12645E
Gloucester City Council,23UE,The Arbor,HC501,Catering Provisions -Food,5110,Food,12/01/2016,412730,21.38,NET,Total Produce Gloucester,12645E
Gloucester City Council,23UE,The Arbor,HC501,Catering Provisions -Food,5110,Food,12/01/2016,412731,33.51,NET,Total Produce Gloucester,12645E
Gloucester City Council,23UE,The Arbor,HC501,Catering Provisions -Food,5110,Food,12/01/2016,412732,31.64,NET,Total Produce Gloucester,12645E
Gloucester City Council,23UE,The Arbor,HC501,Catering Provisions -Food,5110,Food,12/01/2016,412733,14.88,NET,Total Produce Gloucester,12645E
Gloucester City Council,23UE,The Arbor,HC501,Catering Provisions -Food,5110,Food,12/01/2016,412734,17.24,NET,Total Produce Gloucester,12645E
Gloucester City Council,23UE,The Arbor,HC501,Catering Provisions -Food,5110,Food,12/01/2016,412735,24.26,NET,Total Produce Gloucester,12645E
Gloucester City Council,23UE,The Arbor,HC501,Catering Provisions -Food,5110,Food,12/01/2016,412736,42.65,NET,Total Produce Gloucester,12645E
Gloucester City Council,23UE,The Arbor,HC501,Catering Provisions -Food,5110,Food,12/01/2016,412737,74.36,NET,Total Produce Gloucester,12645E
Gloucester City Council,23UE,The Arbor,HC501,Catering Provisions -Food,5110,Food,12/01/2016,412738,69.81,NET,Total Produce Gloucester,12645E
Gloucester City Council,23UE,The Arbor,HC501,Catering Provisions -Food,5110,Food,12/01/2016,412739,44.69,NET,Total Produce Gloucester,12645E
Gloucester City Council,23UE,The Arbor,HC501,Catering Provisions -Food,5110,Food,12/01/2016,412740,16.29,NET,Total Produce Gloucester,12645E
Gloucester City Council,23UE,The Arbor,HC501,Catering Provisions -Food,5110,Food,12/01/2016,412741,22.28,NET,Total Produce Gloucester,12645E
Gloucester City Council,23UE,The Arbor,HC501,Catering Provisions -Food,5110,Food,12/01/2016,412742,112.74,NET,Total Produce Gloucester,12645E
Gloucester City Council,23UE,The Arbor,HC501,Catering Provisions -Food,5110,Food,12/01/2016,412744,4.96,NET,Total Produce Gloucester,12645E
Gloucester City Council,23UE,The Arbor,HC501,Catering Provisions -Food,5110,Food,12/01/2016,412748,18.31,NET,Total Produce Gloucester,12645E
Gloucester City Council,23UE,The Arbor,HC501,Catering Provisions -Food,5110,Food,12/01/2016,412749,30.73,NET,Total Produce Gloucester,12645E
Gloucester City Council,23UE,The Arbor,HC501,Catering Provisions -Food,5110,Food,12/01/2016,412750,35.54,NET,Total Produce Gloucester,12645E
Gloucester City Council,23UE,The Arbor,HC501,Catering Provisions -Food,5110,Food,12/01/2016,412751,78.68,NET,Total Produce Gloucester,12645E
Gloucester City Council,23UE,The Arbor,HC501,Catering Provisions -Food,5110,Food,12/01/2016,412752,46.84,NET,Total Produce Gloucester,12645E
Gloucester City Council,23UE,The Arbor,HC501,Catering Provisions -Food,5110,Food,12/01/2016,412753,34.96,NET,Total Produce Gloucester,12645E
Gloucester City Council,23UE,The Arbor,HC501,Catering Provisions -Food,5110,Food,12/01/2016,412754,29.77,NET,Total Produce Gloucester,12645E
Gloucester City Council,23UE,The Arbor,HC501,Catering Provisions -Food,5110,Food,12/01/2016,412755,30.04,NET,Total Produce Gloucester,12645E
Gloucester City Council,23UE,The Arbor,HC501,Catering Provisions -Food,5110,Food,12/01/2016,412756,29.88,NET,Total Produce Gloucester,12645E
Gloucester City Council,23UE,The Arbor,HC501,Catering Provisions -Food,5110,Food,12/01/2016,412757,33.08,NET,Total Produce Gloucester,12645E
Gloucester City Council,23UE,The Arbor,HC501,Catering Provisions -Food,5110,Food,12/01/2016,412758,19.81,NET,Total Produce Gloucester,12645E
Gloucester City Council,23UE,The Arbor,HC501,Catering Provisions -Food,5110,Food,12/01/2016,412759,13.17,NET,Total Produce Gloucester,12645E
Gloucester City Council,23UE,The Arbor,HC501,Catering Provisions -Food,5110,Food,12/01/2016,412760,8.59,NET,Total Produce Gloucester,12645E
Gloucester City Council,23UE,The Arbor,HC501,Catering Provisions -Food,5110,Food,12/01/2016,412761,63.43,NET,Total Produce Gloucester,12645E
Gloucester City Council,23UE,The Arbor,HC501,Catering Provisions -Food,5110,Food,12/01/2016,412783,406.73,NET,Bidvest Foodservice (3663),55585U
Gloucester City Council,23UE,The Arbor,HC501,Catering Provisions -Food,5110,Food,12/01/2016,412784,457.12,NET,Bidvest Foodservice (3663),55585U
Gloucester City Council,23UE,The Arbor,HC501,Catering Provisions -Food,5110,Food,12/01/2016,412785,51.11,NET,Bidvest Foodservice (3663),55585U
Gloucester City Council,23UE,The Arbor,HC501,Catering Provisions -Liquor,5111,DRINKS,12/01/2016,412667,96.41,NET,Cellar Supplies Cheltenham Ltd,01563L
Gloucester City Council,23UE,The Arbor,HC501,Catering Provisions -Liquor,5111,DRINKS,12/01/2016,412668,153.7,NET,Cellar Supplies Cheltenham Ltd,01563L
Gloucester City Council,23UE,The Arbor,HC501,Catering Provisions -Liquor,5111,DRINKS,12/01/2016,412669,125.38,NET,Cellar Supplies Cheltenham Ltd,01563L
Gloucester City Council,23UE,The Arbor,HC501,Catering Provisions -Liquor,5111,DRINKS,12/01/2016,412670,93.44,NET,Cellar Supplies Cheltenham Ltd,01563L
Gloucester City Council,23UE,The Arbor,HC501,Catering Provisions -Liquor,5111,DRINKS,12/01/2016,412671,175.36,NET,Cellar Supplies Cheltenham Ltd,01563L
Gloucester City Council,23UE,The Arbor,HC501,Maint Agreements - Buildings,3010,Coffee & syrups,12/01/2016,412052,290.29,NET,Caffeica Ltd,11923J
Gloucester City Council,23UE,The Arbor,HC501,Other Minor Supplies Services,5590,Flowers,12/01/2016,412745,25.8,NET,Carols Florist,01274X
Gloucester City Council,23UE,The Arbor,HC501,Other Minor Supplies Services,5590,Flowers,12/01/2016,412746,19.8,NET,Carols Florist,01274X
Gloucester City Council,23UE,The Arbor,HC501,Other Minor Supplies Services,5590,Flowers,12/01/2016,412747,26.4,NET,Carols Florist,01274X
Gloucester City Council,23UE,Tic Trading,LT110,Materials For Sale,5080,goods for resale,12/01/2016,412696,152.4,NET,Kitchen Garden Foods Ltd,15779B
Gloucester City Council,23UE,Tourism Marketing,LT100,Operational Equipment <5000,5012,NAME BADGES,12/01/2016,412677,101.39,NET,Badgemaster Ltd,58525J
Gloucester City Council,23UE,Advance City Attractions,LT109,Materials For Sale,5080,Museums Pass,13/01/2016,412693,156,NET,Canal & River Trust,13779W
Gloucester City Council,23UE,REDACTED,REDACTED,REDACTED,REDACTED,REDACTED,13/01/2016,REDACTED,130,NET,REDACTED,REDACTED
Gloucester City Council,23UE,Blackfriars,LA609,Hire Of Equipment,5020,furniture hire 9-13 OCT15,13/01/2016,412480,70.75,NET,Valley Furniture Hire Ltd,08324P
Gloucester City Council,23UE,Blackfriars,LA609,Hire Of Equipment,5020,glasses hire,13/01/2016,413016,66.25,NET,Gloucester Event Hire,56935D
Gloucester City Council,23UE,Blackfriars,LA609,Hire Of Equipment,5020,glasses hire,13/01/2016,413019,115,NET,Gloucester Event Hire,56935D
Gloucester City Council,23UE,Blackfriars,LA609,Hire Of Equipment,5020,glasses hire,13/01/2016,413022,140.65,NET,Gloucester Event Hire,56935D
Gloucester City Council,23UE,Blackfriars,LA609,Hire Of Equipment,5020,glasses hire,13/01/2016,413024,66.25,NET,Gloucester Event Hire,56935D
Gloucester City Council,23UE,Blackfriars,LA609,Hire Of Equipment,5020,glasses hire,13/01/2016,413025,73.75,NET,Gloucester Event Hire,56935D
Gloucester City Council,23UE,Blackfriars,LA609,Hire Of Equipment,5020,glasses hire 7-10Aug15,13/01/2016,413015,124,NET,Gloucester Event Hire,56935D
Gloucester City Council,23UE,Blackfriars,LA609,Hire Of Equipment,5020,glasses hire - charge for losses,13/01/2016,413027,22.3,NET,Gloucester Event Hire,56935D
Gloucester City Council,23UE,Blackfriars,LA609,Hire Of Equipment,5020,glass hire for Blackfriars event,13/01/2016,413003,73.75,NET,Gloucester Event Hire,56935D
Gloucester City Council,23UE,Business Grants,GY007,Contract Payments,20,Growth Grant,13/01/2016,412710,1500,CAP,The Norville Group Ltd,16194D
Gloucester City Council,23UE,Business Transformation & Tech,RT700,Computer Software Maintenance,5427,Redstor DR Backup,13/01/2016,412704,3313.51,NET,Civica Uk Ltd,10841X
Gloucester City Council,23UE,Business Transformation & Tech,RT700,Computer Software Maintenance,5427,Redstor DR Backup,13/01/2016,412705,4250.48,NET,Civica Uk Ltd,10841X
Gloucester City Council,23UE,Business Transformation & Tech,RT700,Fees For Services Received,5350,Battery Replacement,13/01/2016,412782,100,NET,Civica Uk Ltd,10841X
Gloucester City Council,23UE,Business Transformation & Tech,RT700,Printing,5300,scanner lease DEC15-FEB16,13/01/2016,413028,315,NET,Stanford Marsh Ltd,51139M
Gloucester City Council,23UE,Cemeteries,HC300,Clothing,5200,ANORAK & OVERTROUSERS,13/01/2016,412658,38.41,NET,Safpro Industrial Supply Co,39190W
Gloucester City Council,23UE,Cemeteries,HC300,Fuel,4012,FAST ANTI WAX,13/01/2016,412690,20,NET,Cpl Petroleum,55192U
Gloucester City Council,23UE,Cemeteries,HC300,Fuel,4012,GASOIL,13/01/2016,412679,395,NET,Cpl Petroleum,55192U
Gloucester City Council,23UE,Cemeteries,HC300,Operational Materials,5070,Safety Boots,13/01/2016,412657,145.78,NET,Safpro Industrial Supply Co,39190W
Gloucester City Council,23UE,Cemeteries,HC300,Operational Materials,5070,TOPSOIL,13/01/2016,412766,320,NET,Allstone Sand & Gravel Aggregates Ltd,00940M
Gloucester City Council,23UE,City Museum And Art Gallery,LM200,Overtime - Receptionists,1453,donation boxes,13/01/2016,413035,1580,NET,Donationboxes.Co.Uk Ltd,15798X
Gloucester City Council,23UE,Client Revs & Bens Contract,RT240,Bailiffs Fees,5368,VAT due on fees,13/01/2016,412673,0,NET,Bristow & Sutor,05450M
Gloucester City Council,23UE,Client Revs & Bens Contract,RT240,Bailiffs Fees,5368,VAT due on fees,13/01/2016,412674,55.32,NET,Bristow & Sutor,05450M
Gloucester City Council,23UE,Client Revs & Bens Contract,RT240,Bailiffs Fees,5368,VAT due on fees,13/01/2016,412675,0,NET,Bristow & Sutor,05450M
Gloucester City Council,23UE,Client Revs & Bens Contract,RT240,Bailiffs Fees,5368,VAT on fees collected,13/01/2016,412688,0,NET,Phoenix Commercial Collections Ltd,13435J
Gloucester City Council,23UE,Client Revs & Bens Contract,RT240,Bailiffs Fees,5368,VAT on fees collected,13/01/2016,412689,0,NET,Phoenix Commercial Collections Ltd,13435J
Gloucester City Council,23UE,Contact Centre,RB300,Other Minor Supplies Services,5590,Call Usage December 2015,13/01/2016,412655,74.82,NET,Office Response,09439K
Gloucester City Council,23UE,Contact Centre,RB300,Uniforms,5201,work clothes,13/01/2016,413031,35,NET,Meltemi Company Clothing Limited,54572N
Gloucester City Council,23UE,Contaminated Land,HE301,Fees For Services Received,5350,NOV15 CONTAMINATED LAND WORKS,13/01/2016,412680,2404.64,NET,Bromsgrove District Council,15037G
Gloucester City Council,23UE,Contaminated Land,HE301,Fees For Services Received,5350,OCT15 CONTAMINATED LAND WORK,13/01/2016,412681,1938.16,NET,Bromsgrove District Council,15037G
Gloucester City Council,23UE,Corporate Reporting /Financing,RC504,Fees For Services Received,5350,Kiddivouchers January 2016,13/01/2016,412660,42.91,NET,Wider Plan Ltd ( Formerly Kiddivouchers),07893B
Gloucester City Council,23UE,Crematorium,HC200,Cleaning Materials,3600,Services Jan - Mar 2016,13/01/2016,412684,29.81,NET,Initial Washroom Solutions,24219P
Gloucester City Council,23UE,Docks Complex - Catering Servs,RB110,Catering Provisions -Food,5110,Food,13/01/2016,412974,179.77,NET,Bidvest Foodservice (3663),55585U
Gloucester City Council,23UE,Docks Complex - Catering Servs,RB110,Catering Provisions -Food,5110,Food,13/01/2016,412975,205.58,NET,Bidvest Foodservice (3663),55585U
Gloucester City Council,23UE,Docks Complex - Catering Servs,RB110,Catering Provisions -Food,5110,Food,13/01/2016,412976,52.51,NET,Total Produce Gloucester,12645E
Gloucester City Council,23UE,Docks Complex - Catering Servs,RB110,Catering Provisions -Food,5110,Food,13/01/2016,412977,17.13,NET,Total Produce Gloucester,12645E
Gloucester City Council,23UE,Docks Complex - Catering Servs,RB110,Catering Provisions -Food,5110,Food,13/01/2016,412979,26.33,NET,Total Produce Gloucester,12645E
Gloucester City Council,23UE,Docks Complex - Catering Servs,RB110,Catering Provisions -Food,5110,Food,13/01/2016,412980,44.35,NET,Total Produce Gloucester,12645E
Gloucester City Council,23UE,Docks Complex - Catering Servs,RB110,Catering Provisions -Food,5110,Food,13/01/2016,412981,7.92,NET,Total Produce Gloucester,12645E
Gloucester City Council,23UE,Docks Complex - Catering Servs,RB110,Catering Provisions -Food,5110,Food,13/01/2016,412982,8.77,NET,Total Produce Gloucester,12645E
Gloucester City Council,23UE,Docks Complex - Catering Servs,RB110,Catering Provisions -Food,5110,Food,13/01/2016,412983,53.23,NET,Total Produce Gloucester,12645E
Gloucester City Council,23UE,Docks Complex - Catering Servs,RB110,Catering Provisions -Food,5110,Food,13/01/2016,412984,8.64,NET,Total Produce Gloucester,12645E
Gloucester City Council,23UE,Docks Complex - Catering Servs,RB110,Catering Provisions -Food,5110,Food,13/01/2016,412985,8.64,NET,Total Produce Gloucester,12645E
Gloucester City Council,23UE,Docks Complex - Catering Servs,RB110,Catering Provisions -Food,5110,Food,13/01/2016,412986,26.65,NET,Total Produce Gloucester,12645E
Gloucester City Council,23UE,Docks Complex - Catering Servs,RB110,Catering Provisions -Food,5110,Food,13/01/2016,412987,12.36,NET,Total Produce Gloucester,12645E
Gloucester City Council,23UE,Docks Complex - Catering Servs,RB110,Catering Provisions -Food,5110,Food,13/01/2016,412988,52.52,NET,Total Produce Gloucester,12645E
Gloucester City Council,23UE,Docks Complex - Catering Servs,RB110,Catering Provisions -Food,5110,Food,13/01/2016,412989,8.64,NET,Total Produce Gloucester,12645E
Gloucester City Council,23UE,Docks Complex - Catering Servs,RB110,Catering Provisions -Food,5110,Food,13/01/2016,412990,58.46,NET,Total Produce Gloucester,12645E
Gloucester City Council,23UE,Docks Complex - Catering Servs,RB110,Catering Provisions -Food,5110,Food,13/01/2016,412991,40.99,NET,Total Produce Gloucester,12645E
Gloucester City Council,23UE,Docks Complex - Catering Servs,RB110,Catering Provisions -Food,5110,Milk,13/01/2016,412978,8.64,NET,Total Produce Gloucester,12645E
Gloucester City Council,23UE,Guildhall Bar And Caf�,LA210,Catering Provisions -Food,5110,Food,13/01/2016,412993,4.6,NET,Total Produce Gloucester,12645E
Gloucester City Council,23UE,Guildhall Bar And Caf�,LA210,Catering Provisions -Food,5110,Food,13/01/2016,412995,4.4,NET,Total Produce Gloucester,12645E
Gloucester City Council,23UE,Guildhall Bar And Caf�,LA210,Catering Provisions -Food,5110,Food,13/01/2016,412996,4.6,NET,Total Produce Gloucester,12645E
Gloucester City Council,23UE,Guildhall Bar And Caf�,LA210,Catering Provisions -Food,5110,Food,13/01/2016,412999,109.63,NET,Woodward Foodservice,10714F
Gloucester City Council,23UE,Guildhall Bar And Caf�,LA210,Catering Provisions -Food,5110,Milk,13/01/2016,412997,4.6,NET,Total Produce Gloucester,12645E
Gloucester City Council,23UE,Guildhall Bar And Caf�,LA210,Catering Provisions -Food,5110,Milk,13/01/2016,412998,4.6,NET,Total Produce Gloucester,12645E
Gloucester City Council,23UE,Guildhall Cinema,LA202,Fees For Services Received,5350,FILM TRANSPORT,13/01/2016,412709,219.59,NET,Nft Logistics Ltd,13505N
Gloucester City Council,23UE,REDACTED,REDACTED,REDACTED,REDACTED,REDACTED,13/01/2016,REDACTED,360,NET,REDACTED,REDACTED
Gloucester City Council,23UE,REDACTED,REDACTED,REDACTED,REDACTED,REDACTED,13/01/2016,REDACTED,148.44,NET,REDACTED,REDACTED
Gloucester City Council,23UE,Homelessness Prevention,CH122,Basic Pay - Temporary Staff,2751,temporary staff w/e 3/1/16,13/01/2016,413033,483.75,NET,Greenacre Recruitment Ltd,15817V
Gloucester City Council,23UE,REDACTED,REDACTED,REDACTED,REDACTED,REDACTED,13/01/2016,REDACTED,530,NET,REDACTED,REDACTED
Gloucester City Council,23UE,Investment Property,RB500,General Repair/Maint Buildings,3000,DEC15 MTC claims,13/01/2016,413029,12609.37,NET,Rf Gardiner Limited,12299B
Gloucester City Council,23UE,Marchants,LT108,Materials For Sale,5080,Sales on Tickets October 2015,13/01/2016,412695,3033,NET,Marchants Coaches Ltd,48151Y
Gloucester City Council,23UE,National Express,LT105,Materials For Sale,5080,Tickets December 15,13/01/2016,412973,8500.5,NET,National Express Ltd,31455K
Gloucester City Council,23UE,National Express,LT105,Sale Of Goods And Services,9230,Tickets December 15,13/01/2016,412973,-830.57,NET,National Express Ltd,31455K
Gloucester City Council,23UE,Nms Contract,HI102,Contracted Services,6970,To cancel incorrect credit note,13/01/2016,412781,306.02,NET,Enterprise (Aol) Ltd,06695G
Gloucester City Council,23UE,Rugby World Cup,LT450,Fees For Services Received,5350,Fencing and Barriers 2015,13/01/2016,412923,547.32,NET,Show Services Group Ltd,56329F
Gloucester City Council,23UE,Rugby World Cup,LT450,Fees For Services Received,5350,Fencing & Barriers 2015,13/01/2016,412964,180.66,NET,Show Services Group Ltd,56329F
Gloucester City Council,23UE,Theatre Tokens,LT106,Materials For Sale,5080,Tickets Sold December 2015,13/01/2016,412961,995,NET,Society Of London Theatre,05656Z
Gloucester City Council,23UE,Theatre Tokens,LT106,Sale Of Goods And Services,9230,Tickets Sold December 2015,13/01/2016,412961,-49.75,NET,Society Of London Theatre,05656Z
Gloucester City Council,23UE,Tic Trading,LT110,Trade Refuse Sacks,5040,Trade Sacks,13/01/2016,412691,1848.8,NET,Enterprise (Aol) Ltd,06695G
Gloucester City Council,23UE,Tic Trading,LT110,Trade Refuse Sacks,5040,Trade Sacks,13/01/2016,412692,1848.8,NET,Enterprise (Aol) Ltd,06695G
Gloucester City Council,23UE,Townscape Heritage Initiative,LY145,Contract Payments,20,Energy Efficiency course MAR16,13/01/2016,413036,355,CAP,Environment Study Centre,16220E
Gloucester City Council,23UE,Allotments,HI104,Fees For Services Received,5350,Builder Skip,14/01/2016,413000,215,NET,Allstone Sand & Gravel Aggregates Ltd,00940M
Gloucester City Council,23UE,Blackfriars Catering,LA220,Catering Provisions -Liquor,5111,Drinks,14/01/2016,412898,245.52,NET,Cellar Supplies Cheltenham Ltd,01563L
Gloucester City Council,23UE,Cemeteries,HC300,Basic Pay - Temporary Staff,2751,temoprary staff,14/01/2016,412114,439.88,NET,Premiere Employment Group Ltd,55468Z
Gloucester City Council,23UE,Cemeteries,HC300,Operational Materials,5070,Ply wood,14/01/2016,413026,606.3,NET,Millington & Ramstedt Ltd,29815S
Gloucester City Council,23UE,Cemeteries,HC300,Operational Materials,5070,"RUBBER BOOTS, CHAINSAW GLOVES ETC",14/01/2016,412685,226.58,NET,Spaldings,48759Y
Gloucester City Council,23UE,Cemeteries,HC300,Operational Materials,5070,TOPSOIL,14/01/2016,412763,75,NET,Allstone Sand & Gravel Aggregates Ltd,00940M
Gloucester City Council,23UE,Cems/Crems Admin,HC100,Maintenance Of Equipment,5030,Membership 2016,14/01/2016,412969,911.4,NET,Federation Of Burial And Crem Authorities,49758R
Gloucester City Council,23UE,Cems/Crems Admin,HC100,Security Services Fees,5351,Cash Processed December 2015,14/01/2016,413001,14.11,NET,G4s Cash Solutions (Uk) Ltd,04290V
Gloucester City Council,23UE,City Museum And Art Gallery,LM200,General Repair/Maint Buildings,3000,Annual Rental Maintenance,14/01/2016,413012,1013.19,NET,Secom Plc,51471A
Gloucester City Council,23UE,Client Revs & Bens Contract,RT240,Bailiffs Fees,5368,VAT due on fees,14/01/2016,412897,0,NET,Bristow & Sutor,05450M
Gloucester City Council,23UE,Client Revs & Bens Contract,RT240,Bailiffs Fees,5368,VAT on fees collected,14/01/2016,412896,0,NET,Phoenix Commercial Collections Ltd,13435J
Gloucester City Council,23UE,Contaminated Land,HE301,Fees For Services Received,5350,Review PVR Stage 2 application,14/01/2016,412926,224,NET,Bromsgrove District Council,15037G
Gloucester City Council,23UE,Development Management,PT200,Basic Pay - Temporary Staff,2751,TEMPORARY STAFF W/E 27/12/15,14/01/2016,412711,1200,NET,The Oyster Partnership Limited,14900T
Gloucester City Council,23UE,Docks Complex - Catering Servs,RB110,Catering Provisions -Food,5110,Food,14/01/2016,412903,11.94,NET,Janes Pantry,24500W
Gloucester City Council,23UE,Docks Complex - Catering Servs,RB110,Catering Provisions -Food,5110,Food,14/01/2016,412904,11.69,NET,Janes Pantry,24500W
Gloucester City Council,23UE,Docks Complex - Catering Servs,RB110,Catering Provisions -Food,5110,Food,14/01/2016,412905,3.71,NET,Janes Pantry,24500W
Gloucester City Council,23UE,Docks Complex - Catering Servs,RB110,Catering Provisions -Food,5110,Food,14/01/2016,412906,14.66,NET,Janes Pantry,24500W
Gloucester City Council,23UE,Docks Complex - Catering Servs,RB110,Catering Provisions -Food,5110,Food,14/01/2016,412907,11.27,NET,Janes Pantry,24500W
Gloucester City Council,23UE,Docks Complex - Catering Servs,RB110,Catering Provisions -Food,5110,Food,14/01/2016,412908,14.87,NET,Janes Pantry,24500W
Gloucester City Council,23UE,Docks Complex - Catering Servs,RB110,Catering Provisions -Food,5110,Food,14/01/2016,412909,11.65,NET,Janes Pantry,24500W
Gloucester City Council,23UE,Docks Complex - Catering Servs,RB110,Catering Provisions -Food,5110,Food,14/01/2016,412910,21.25,NET,Janes Pantry,24500W
Gloucester City Council,23UE,Docks Complex - Catering Servs,RB110,Catering Provisions -Food,5110,Food,14/01/2016,412911,8.82,NET,Janes Pantry,24500W
Gloucester City Council,23UE,Docks Complex - Catering Servs,RB110,Catering Provisions -Food,5110,Food,14/01/2016,412912,13.95,NET,Janes Pantry,24500W
Gloucester City Council,23UE,Docks Complex - Catering Servs,RB110,Catering Provisions -Food,5110,Food,14/01/2016,412913,13.71,NET,Janes Pantry,24500W
Gloucester City Council,23UE,Docks Complex - Catering Servs,RB110,Catering Provisions -Food,5110,Food,14/01/2016,412914,14.66,NET,Janes Pantry,24500W
Gloucester City Council,23UE,Docks Complex - Catering Servs,RB110,Catering Provisions -Food,5110,Food,14/01/2016,412915,11.71,NET,Janes Pantry,24500W
Gloucester City Council,23UE,Docks Complex - Catering Servs,RB110,Catering Provisions -Food,5110,Food,14/01/2016,412916,18.88,NET,Janes Pantry,24500W
Gloucester City Council,23UE,Docks Complex - Catering Servs,RB110,Catering Provisions -Food,5110,Food,14/01/2016,412917,17.48,NET,Janes Pantry,24500W
Gloucester City Council,23UE,Docks Complex - Catering Servs,RB110,Catering Provisions -Food,5110,Food,14/01/2016,412918,12.87,NET,Janes Pantry,24500W
Gloucester City Council,23UE,Docks Complex - Catering Servs,RB110,Catering Provisions -Food,5110,Food,14/01/2016,412919,14.66,NET,Janes Pantry,24500W
Gloucester City Council,23UE,Docks Complex - Services,RB100,Security Services Fees,5351,Cash Processed December 2015,14/01/2016,413001,3.53,NET,G4s Cash Solutions (Uk) Ltd,04290V
Gloucester City Council,23UE,Economic Development,FP300,Other Minor Supplies Services,5590,Catering,14/01/2016,413078,240,NET,Roots Coffee & Community Cic,13358B
Gloucester City Council,23UE,Financial Services,RT200,Subscriptions,5600,2015/16 subscription invoice,14/01/2016,412369,200,NET,Society Of District Council Treasurers,08379L
Gloucester City Council,23UE,Financial Services,RT200,Subscriptions,5600,Subscription 15/16,14/01/2016,412920,375,NET,Lg Futures,11251S
Gloucester City Council,23UE,Gloucester Guildhall,LA100,Maintenance Of Equipment,5030,Earplugs,14/01/2016,411245,98,NET,Directa Uk Ltd,05387T
Gloucester City Council,23UE,Grants To Voluntary Sector,FG100,Members Allocation Fund,7100F,Grant,14/01/2016,413083,500,NET,Heart Of Gloucester Fc,16224W
Gloucester City Council,23UE,Grants To Voluntary Sector,FG100,Members Allocation Fund,7100F,Grant,14/01/2016,413084,150,NET,Coney Hill Local History Group,16227P
Gloucester City Council,23UE,Grants To Voluntary Sector,FG100,Members Allocation Fund,7100F,GRANT,14/01/2016,413085,312.62,NET,St Oswalds Village And Residents Association,16226S
Gloucester City Council,23UE,Grants To Voluntary Sector,FG100,Sla'S,7100B,ADVICE CENTRE SLA FEES,14/01/2016,413080,18856,NET,Gloucester Law Centre,18157R
Gloucester City Council,23UE,Grants To Voluntary Sector,FG100,Sla'S,7100B,ADVICE CENTRE SLA FEES,14/01/2016,413082,15432,NET,Gloucester & District Citizens Advice Bureau,07709Y
Gloucester City Council,23UE,REDACTED,REDACTED,REDACTED,REDACTED,REDACTED,14/01/2016,REDACTED,551,NET,REDACTED,REDACTED
Gloucester City Council,23UE,Guildhall Bar And Caf�,LA210,Catering Provisions -Liquor,5111,BEERGAS,14/01/2016,412716,14.81,NET,Boc Ltd,59172L
Gloucester City Council,23UE,REDACTED,REDACTED,REDACTED,REDACTED,REDACTED,14/01/2016,REDACTED,57.08,NET,REDACTED,REDACTED
Gloucester City Council,23UE,REDACTED,REDACTED,REDACTED,REDACTED,REDACTED,14/01/2016,REDACTED,65.36,NET,REDACTED,REDACTED
Gloucester City Council,23UE,REDACTED,REDACTED,REDACTED,REDACTED,REDACTED,14/01/2016,REDACTED,525,NET,REDACTED,REDACTED
Gloucester City Council,23UE,Kings Quarter,RY146,Contract Payments,20,KINGS QTR PLANNING APP FEES STAGE 3,14/01/2016,412587,8525.5,CAP,Gva Grimley,56359W
Gloucester City Council,23UE,Longlevens Np Active Together,LY161,Contract Payments,20,Greyhound Gardens play equipment,14/01/2016,413032,1250,CAP,Greenfields Garden Services Ltd,48130G
Gloucester City Council,23UE,Planning Policy,PT300,Fees For Services Received,5350,Retail impact study works,14/01/2016,411221,200,NET,Dpds Ltd,05404V
Gloucester City Council,23UE,Rugby World Cup,LT450,Fees For Services Received,5350,Fire Extinguishers,14/01/2016,412922,60,NET,City Fire Protection Ltd,06727F
Gloucester City Council,23UE,Rugby World Cup,LT450,Fees For Services Received,5350,Fire Extinguishers,14/01/2016,412924,90,NET,City Fire Protection Ltd,06727F
Gloucester City Council,23UE,REDACTED,REDACTED,REDACTED,REDACTED,REDACTED,14/01/2016,REDACTED,624.6,NET,REDACTED,REDACTED
Gloucester City Council,23UE,REDACTED,REDACTED,REDACTED,REDACTED,REDACTED,14/01/2016,REDACTED,-52.05,NET,REDACTED,REDACTED
Gloucester City Council,23UE,Unallocated It,RY525,Contract Payments,20,Server Refresh,14/01/2016,412927,512901,CAP,Civica Uk Ltd,10841X
Gloucester City Council,23UE,Vehicles,RS140,Fuel,4012,Fuel,14/01/2016,412963,64.13,NET,Allstar Business Solutions Ltd (Arval),06594A
Gloucester City Council,23UE,Asset Management,RS300,Basic Pay - Temporary Staff,2751,Consultancy Services December 15,15/01/2016,412933,5250,NET,Ardley Associates,09369F
Gloucester City Council,23UE,Business Transformation & Tech,RT700,Computer Hardware Maintenance,5426,RedStore 30TB Backup,15/01/2016,412938,17001.92,NET,Civica Uk Ltd,10841X
Gloucester City Council,23UE,Business Transformation & Tech,RT700,Telephones And Fax,5410,Airwatch remedial works,15/01/2016,412936,12403.97,NET,Civica Uk Ltd,10841X
Gloucester City Council,23UE,Cemeteries,HC300,Operational Materials,5070,Batteries,15/01/2016,412935,18.32,NET,Revolution Multimedia,07880L
Gloucester City Council,23UE,Civica Admin Charges,RT105,Fees For Services Received,5350,Subscripton Advance,15/01/2016,412941,4,NET,Companies House,58954E
Gloucester City Council,23UE,Civica Admin Charges,RT105,Postages,5400,Post 14/12 - 31/12 2015,15/01/2016,412965,1168.28,NET,Royal Mail S.Wales & South West,35830S
Gloucester City Council,23UE,Contaminated Land,HE301,Fees For Services Received,5350,PACE Interview,15/01/2016,412929,125,NET,Bromsgrove District Council,15037G
Gloucester City Council,23UE,Crematorium,HC200,Cleaning Materials,3600,Cleaning Materials,15/01/2016,412718,228.85,NET,Acs Business Supplies Ltd,15791M
Gloucester City Council,23UE,Docks Complex - Services,RB100,Cleaning Materials,3600,Cleaning Materials,15/01/2016,412718,258.39,NET,Acs Business Supplies Ltd,15791M
Gloucester City Council,23UE,Financial Services,RT200,Training Course Fees,5367,AAT Exam 16/01/16,15/01/2016,413122,77.5,NET,Pitman Training Cheltenham,15476Z
Gloucester City Council,23UE,General Drainage Works,PY241,Contract Payments,20,River Twyver,15/01/2016,412943,6176,CAP,Rj Contracting (Environmental) Ltd,07429H
Gloucester City Council,23UE,Gloucester Guildhall,LA100,Maintenance Of Equipment,5030,gaffa tape black & white,15/01/2016,412483,48.24,NET,Directa Uk Ltd,05387T
Gloucester City Council,23UE,REDACTED,REDACTED,REDACTED,REDACTED,REDACTED,15/01/2016,REDACTED,151.25,NET,REDACTED,REDACTED
Gloucester City Council,23UE,REDACTED,REDACTED,REDACTED,REDACTED,REDACTED,15/01/2016,REDACTED,53.89,NET,REDACTED,REDACTED
Gloucester City Council,23UE,Head Of Regeneration & Eco Dev,GO102,Grants To Advice Centres,7100,Grant,15/01/2016,413123,50000,NET,Gloucester Boat House Ltd,16295W
Gloucester City Council,23UE,Members Support,RC300,Members Training,5535,LGA Culture Tourism & Sport conference,15/01/2016,412589,299,NET,Local Government Association,11683F
Gloucester City Council,23UE,Off Street Car Parks,PP110,Computer Software Maintenance,5427,Oct & Nov 2015,15/01/2016,412161,1550.67,NET,Chipside Ltd,06535T
Gloucester City Council,23UE,Off Street Car Parks,PP110,Contracted Services,6970,Penalty Charge Notices 15/16,15/01/2016,412890,351.2,NET,Patrol,09431C
Gloucester City Council,23UE,Pollution Control,HE300,Charges For Services,9300,Removal of Fly tipping,15/01/2016,412895,240,NET,Rj Contracting (Environmental) Ltd,07429H
Gloucester City Council,23UE,Printing,RP103,Printing,5300,Print Room Sales December 15,15/01/2016,412928,432.48,NET,Alpha Colour Printers Ltd,00945B
Gloucester City Council,23UE,Retail Market - Landlord,HM300,Cleaning Materials,3600,Cleaning Materials,15/01/2016,412718,277.63,NET,Acs Business Supplies Ltd,15791M
Gloucester City Council,23UE,Statutory Testing,RS310,Legionella,3018,sample testing,15/01/2016,412893,110,NET,Kingfisher Environmental Services Ltd,04738V
Gloucester City Council,23UE,Statutory Testing,RS310,Legionella,3018,sample testing,15/01/2016,413040,80,NET,Kingfisher Environmental Services Ltd,04738V
Gloucester City Council,23UE,Superbreak,LT104,Materials For Sale,5080,sales on commission,15/01/2016,412931,133,NET,Superbreak Mini Holidays,00712D
Gloucester City Council,23UE,Superbreak,LT104,Sale Of Goods And Services,9230,sales on commission,15/01/2016,412931,-11.08,NET,Superbreak Mini Holidays,00712D
Gloucester City Council,23UE,The Arbor,HC501,Catering Provisions -Food,5110,Food,15/01/2016,412743,324.13,NET,Bidvest Foodservice (3663),55585U
Gloucester City Council,23UE,Tic Rovercard Sales,LT101,Materials For Sale,5080,Tickets Nov - Dec 15,15/01/2016,412930,3617,NET,Stagecoach Services Ltd,56554W
Gloucester City Council,23UE,Tic Rovercard Sales,LT101,Sale Of Goods And Services,9230,Tickets Nov - Dec 15,15/01/2016,412930,-301.42,NET,Stagecoach Services Ltd,56554W
Gloucester City Council,23UE,Blackfriars,LA609,Fees For Services Received,5350,CHAIR COVER AND SASH HIRE,18/01/2016,413166,283.5,NET,Cotswold Chair Covers,13553B
Gloucester City Council,23UE,Cemeteries,HC300,Basic Pay - Temporary Staff,2751,temporary staff,18/01/2016,412940,439.88,NET,Premiere Employment Group Ltd,55468Z
Gloucester City Council,23UE,Civica Contract Revs & Bens,RT250,Contracted Services,6970,FEB16 CORE REVS&BENS SERVICE,18/01/2016,412701,137322.7,NET,Civica Uk Ltd,10841X
Gloucester City Council,23UE,Council Streetcare Team,HI101,General Repair/Maint Buildings,3000,budgie seed,18/01/2016,413161,17.49,NET,Angell Pets Ltd,15773P
Gloucester City Council,23UE,Council Streetcare Team,HI101,General Repair/Maint Buildings,3000,finch seed,18/01/2016,413165,19.99,NET,Angell Pets Ltd,15773P
Gloucester City Council,23UE,Docks Complex - Castlemeads Cp,RB210,Contracted Services,6970,GC Variable Enforcement,18/01/2016,412947,4019.79,NET,Apcoa Parking (Uk) Ltd,09954M
Gloucester City Council,23UE,Docks Complex - Castlemeads Cp,RB210,Contracted Services,6970,GC Vehicles,18/01/2016,412949,375.42,NET,Apcoa Parking (Uk) Ltd,09954M
Gloucester City Council,23UE,Docks Complex - Services,RB100,Operational Equipment <5000,5012,Service of Dishwasher,18/01/2016,412713,139,NET,Hoffs (Uk) Ltd,15003A
Gloucester City Council,23UE,Folk Museum,LM210,Exhibits And Collections,5038,SUPPLY 3 DISPLAY CASES,18/01/2016,413155,6300.7,NET,Click Netherfield Ltd,13428F
Gloucester City Council,23UE,Gl1 Emergency Works,RY160,Contract Payments,20,city farm rental Nov15- Jan16,18/01/2016,413163,1500,CAP,REDACTED,REDACTED
Gloucester City Council,23UE,Gloucester Guildhall,LA100,Maintenance Of Equipment,5030,artwork and decals,18/01/2016,413158,267.91,NET,Xtreme Graphics Ltd,13910Z
Gloucester City Council,23UE,Grants To Voluntary Sector,FG100,Abcd Grants,7100A,grant,18/01/2016,413191,500,NET,Only Forward Ocd,16234T
Gloucester City Council,23UE,Grants To Voluntary Sector,FG100,Abcd Grants,7100A,rental of center 12/1/16,18/01/2016,413189,42,NET,Abbeydale Community Association,50263V
Gloucester City Council,23UE,Grants To Voluntary Sector,FG100,Members Allocation Fund,7100F,contribution for new staging,18/01/2016,413190,1000,NET,Hucclecote Community Association,23020B
Gloucester City Council,23UE,Guildhall Bar And Caf�,LA210,Catering Provisions -Food,5110,food,18/01/2016,413162,81.95,NET,Woody'S Fruit & Veg,11798L
Gloucester City Council,23UE,Guildhall Bar And Caf�,LA210,Catering Provisions -Food,5110,ice cream for resale,18/01/2016,413159,72,NET,Winstones Ice Cream Ltd,56347D
Gloucester City Council,23UE,Guildhall Bar And Caf�,LA210,Catering Provisions -Liquor,5111,Gloucester Gold,18/01/2016,413168,114,NET,Gloucester Brewery,13373F
Gloucester City Council,23UE,Homelessness,CH120,Fees For Services Received,5350,medical report,18/01/2016,413179,20.5,NET,Rosebank Health,03041E
Gloucester City Council,23UE,Homelessness,CH120,Fees For Services Received,5350,NOW MEDICAL,18/01/2016,413149,135,NET,Now Medical,03468L
Gloucester City Council,23UE,Homelessness,CH120,Removal And Storage Fees,5513,storage fees,18/01/2016,413173,241.72,NET,Advanced Removals & Storage Ltd,57142R
Gloucester City Council,23UE,Homelessness,CH120,Removal And Storage Fees,5513,storage fees,18/01/2016,413174,297.49,NET,Advanced Removals & Storage Ltd,57142R
Gloucester City Council,23UE,Homelessness,CH120,Removal And Storage Fees,5513,storage fees,18/01/2016,413180,78.21,NET,Advanced Removals & Storage Ltd,57142R
Gloucester City Council,23UE,Homelessness,CH120,Removal And Storage Fees,5513,storage fees,18/01/2016,413181,39.11,NET,Advanced Removals & Storage Ltd,57142R
Gloucester City Council,23UE,Homelessness,CH120,Removal And Storage Fees,5513,storage fees,18/01/2016,413182,234.64,NET,Advanced Removals & Storage Ltd,57142R
Gloucester City Council,23UE,Homelessness,CH120,Removal And Storage Fees,5513,storage fees,18/01/2016,413183,117,NET,Advanced Removals & Storage Ltd,57142R
Gloucester City Council,23UE,Homelessness,CH120,Removal And Storage Fees,5513,storage fees,18/01/2016,413184,371.25,NET,Advanced Removals & Storage Ltd,57142R
Gloucester City Council,23UE,Homelessness,CH120,Removal And Storage Fees,5513,storage fees,18/01/2016,413185,101.25,NET,Advanced Removals & Storage Ltd,57142R
Gloucester City Council,23UE,Homelessness,CH120,Removal And Storage Fees,5513,storage fees,18/01/2016,413186,131.14,NET,Advanced Removals & Storage Ltd,57142R
Gloucester City Council,23UE,Homelessness,CH120,Removal And Storage Fees,5513,storage fees,18/01/2016,413187,371.25,NET,Advanced Removals & Storage Ltd,57142R
Gloucester City Council,23UE,Kings Quarter,RY146,Contract Payments,20,NCP Bruton Way valuation works,18/01/2016,413172,2937.5,CAP,Bruton Knowles,57534T
Gloucester City Council,23UE,Off Street Car Parks,PP110,Contracted Services,6970,GC Fixed Overhead,18/01/2016,412946,773.48,NET,Apcoa Parking (Uk) Ltd,09954M
Gloucester City Council,23UE,Off Street Car Parks,PP110,Contracted Services,6970,GC Other Items,18/01/2016,412948,12218.29,NET,Apcoa Parking (Uk) Ltd,09954M
Gloucester City Council,23UE,Off Street Car Parks,PP110,Contracted Services,6970,GC P&D Headcams,18/01/2016,412945,2088.82,NET,Apcoa Parking (Uk) Ltd,09954M
Gloucester City Council,23UE,Off Street Car Parks,PP110,Contracted Services,6970,GC Vehicles,18/01/2016,412949,78.84,NET,Apcoa Parking (Uk) Ltd,09954M
Gloucester City Council,23UE,Rehousing,CH111,Fees For Services Received,5350,medical report,18/01/2016,413176,20.5,NET,Bartongate Surgery,05680S
Gloucester City Council,23UE,Rehousing,CH111,Fees For Services Received,5350,medical report,18/01/2016,413177,20.5,NET,Dr R Watkins & Partners,59237H
Gloucester City Council,23UE,Rehousing,CH111,Fees For Services Received,5350,medical report,18/01/2016,413164,20.5,NET,Bartongate Surgery,05680S
Gloucester City Council,23UE,Rehousing,CH111,Fees For Services Received,5350,medical report,18/01/2016,413178,20.5,NET,Saintbridge Surgery,58374F
Gloucester City Council,23UE,Rehousing,CH111,Fees For Services Received,5350,medical report,18/01/2016,413175,20.5,NET,Bartongate Surgery,05680S
Gloucester City Council,23UE,Rehousing,CH111,Fees For Services Received,5350,medical reports,18/01/2016,413149,210,NET,Now Medical,03468L
Gloucester City Council,23UE,REDACTED,REDACTED,REDACTED,REDACTED,REDACTED,18/01/2016,REDACTED,20.5,NET,REDACTED,REDACTED
Gloucester City Council,23UE,Vehicles,RS140,Routine R And M - Vehicles,4011,Citroen Berlingo service,18/01/2016,413170,294.77,NET,123 Car & Commercial,07651E
Gloucester City Council,23UE,Vehicles,RS140,Routine R And M - Vehicles,4011,MOT citroen Berlingo,18/01/2016,413171,40,NET,123 Car & Commercial,07651E
Gloucester City Council,23UE,Aspire Admin Charges,LC105,Contracted Services,6970,Monthly Charge January 2016,19/01/2016,412934,54792.25,NET,Aspire Sports & Cultural Trust,08135V
Gloucester City Council,23UE,Aspire Admin Charges,LC105,Security Services Fees,5351,Services February 2016,19/01/2016,413282,184.94,NET,G4s Cash Solutions (Uk) Ltd,04290V
Gloucester City Council,23UE,Blackfriars,LA609,Charges For Services,9300,Art Work Sales,19/01/2016,413289,600,NET,REDACTED,REDACTED
Gloucester City Council,23UE,Blackfriars,LA609,Contract Cleaning,3620,Cover Cleaning 23/12/2015,19/01/2016,412672,260,NET,Into Cleaning,14609P
Gloucester City Council,23UE,Blackfriars,LA609,Sale Of Goods And Services,9230,Art Work Sales,19/01/2016,413289,-75,NET,REDACTED,REDACTED
Gloucester City Council,23UE,Business Transformation & Tech,RT700,Computer Software <5000,5425,Professional Services,19/01/2016,412952,1642.5,NET,Esri (Uk) Ltd,57836X
Gloucester City Council,23UE,Cemeteries,HC300,Basic Pay - Temporary Staff,2751,temporary staff,19/01/2016,412892,263.93,NET,Premiere Employment Group Ltd,55468Z
Gloucester City Council,23UE,Cemeteries,HC300,Basic Pay - Temporary Staff,2751,Temp staff w/e 27/12/15,19/01/2016,413030,310.85,NET,Premiere Employment Group Ltd,55468Z
Gloucester City Council,23UE,Cemeteries,HC300,Clothing,5200,Wellingtons,19/01/2016,412942,15.5,NET,Safpro Industrial Supply Co,39190W
Gloucester City Council,23UE,Cems/Crems Admin,HC100,Security Services Fees,5351,Services February 2016,19/01/2016,413282,105.42,NET,G4s Cash Solutions (Uk) Ltd,04290V
Gloucester City Council,23UE,City Museum And Art Gallery,LM200,Advertising And Publicity,5702,Sponsorship campaign,19/01/2016,412954,3587.5,NET,Soglos,07953J
Gloucester City Council,23UE,City Museum And Art Gallery,LM200,Exhibits And Collections,5038,Licence October 2015,19/01/2016,412950,75,NET,V&A Images,16217T
Gloucester City Council,23UE,City Museum And Art Gallery,LM200,Security Services Fees,5351,Services February 2016,19/01/2016,413282,92.47,NET,G4s Cash Solutions (Uk) Ltd,04290V
Gloucester City Council,23UE,City Museum Catering,LM202,Catering Provisions -Food,5110,Food,19/01/2016,413279,6.9,NET,Total Produce Gloucester,12645E
Gloucester City Council,23UE,City Museum Catering,LM202,Catering Provisions -Food,5110,Food,19/01/2016,413280,4.6,NET,Total Produce Gloucester,12645E
Gloucester City Council,23UE,City Museum Catering,LM202,Catering Provisions -Food,5110,Nov-15,19/01/2016,413273,28.8,NET,Woody'S Fruit & Veg,11798L
Gloucester City Council,23UE,City Museum Catering,LM202,Operational Equipment <5000,5012,Machine Rental,19/01/2016,413232,135,NET,La Spaziale Uk Ltd,11823P
Gloucester City Council,23UE,City Museum Catering,LM202,Operational Equipment <5000,5012,Machine Rental,19/01/2016,413233,135,NET,La Spaziale Uk Ltd,11823P
Gloucester City Council,23UE,Civica Fod Contract,RT260,Contracted Services,6970,FOD CONTRACT Y4 Q1 JAN-MAR16,19/01/2016,412702,189455.02,NET,Civica Uk Ltd,10841X
Gloucester City Council,23UE,Client Revs & Bens Contract,RT240,Bailiffs Fees,5368,VAT due on fees,19/01/2016,413225,0,NET,Bristow & Sutor,05450M
Gloucester City Council,23UE,Client Revs & Bens Contract,RT240,Bailiffs Fees,5368,VAT only invoice,19/01/2016,413154,0,NET,Bristow & Sutor,05450M
Gloucester City Council,23UE,Client Revs & Bens Contract,RT240,Fees For Services Received,5350,Arrest & Detention of defaulters,19/01/2016,412957,120,NET,Assevarate Ltd,11749A
Gloucester City Council,23UE,Contact Centre,RB300,Contract Cleaning,3620,Clean carpets & chairs,19/01/2016,413228,615,NET,Clean Able,15757M
Gloucester City Council,23UE,Contact Centre,RB300,Postages,5400,acct 0252446000 DEC15-JAN16,19/01/2016,413146,1236.73,NET,Royal Mail S.Wales & South West,35830S
Gloucester City Council,23UE,Contact Centre,RB300,Stationery,5302,Stationery,19/01/2016,413230,101.52,NET,Lyreco Uk Ltd,11746G
Gloucester City Council,23UE,Contact Centre,RB300,Subscriptions,5600,Corporate Member Renewal,19/01/2016,413223,5000,NET,Institute Of Customer Service,03321V
Gloucester City Council,23UE,Countryside Unit,LP201,Maint Of Grounds - General,3030,Heavy Duty Welded,19/01/2016,412959,24.99,NET,Screwfix Direct,54672H
Gloucester City Council,23UE,Development Management,PT200,Basic Pay - Temporary Staff,2751,temporary staff w/e 10/1/16,19/01/2016,413157,1605.4,NET,The Oyster Partnership Limited,14900T
Gloucester City Council,23UE,Docks Complex - Catering Servs,RB110,Catering Provisions -Food,5110,Food,19/01/2016,413219,31.68,NET,Janes Pantry,24500W
Gloucester City Council,23UE,Docks Complex - Catering Servs,RB110,Catering Provisions -Food,5110,Food,19/01/2016,413278,304.86,NET,Bidvest Foodservice (3663),55585U
Gloucester City Council,23UE,Docks Complex - Services,RB100,Recycling,3631,Recycling,19/01/2016,412653,38.8,NET,Printwaste Recycling,57114W
Gloucester City Council,23UE,Docks Complex - Services,RB100,Recycling,3631,Recycling,19/01/2016,412654,16.5,NET,Printwaste Recycling,57114W
Gloucester City Council,23UE,Docks Complex - Services,RB100,Recycling,3631,Shredding,19/01/2016,412651,229.8,NET,Printwaste Recycling,57114W
Gloucester City Council,23UE,Docks Complex - Services,RB100,Security Services Fees,5351,Services February 2016,19/01/2016,413282,276.2,NET,G4s Cash Solutions (Uk) Ltd,04290V
Gloucester City Council,23UE,Economic Development,FP300,Business Grant,7116,Zen Ethernet Install,19/01/2016,413252,2500,NET,Zen Internet Limited,16129R
Gloucester City Council,23UE,Economic Development,FP300,Business Grant,7116,Zen Fibre 2,19/01/2016,413253,208.33,NET,Zen Internet Limited,16129R
Gloucester City Council,23UE,Employers Pension Contribs,ZR355,Pension Contribs Incl Backf,2901,Pension payments DEC15 JAN16,19/01/2016,413147,26702.86,NET,Gloucestershire County Council,10614L
Gloucester City Council,23UE,Environmental Planning,LM340,Exhibits And Collections,5038,Membership Subscription 15/16,19/01/2016,413245,140,NET,Algao (Uk),00963Z
Gloucester City Council,23UE,Folk Museum,LM210,Advertising And Publicity,5702,Sponsorship Campaign,19/01/2016,412953,3587.5,NET,Soglos,07953J
Gloucester City Council,23UE,Folk Museum,LM210,Security Services Fees,5351,Services February 2016,19/01/2016,413282,92.47,NET,G4s Cash Solutions (Uk) Ltd,04290V
Gloucester City Council,23UE,General Drainage Works,PY241,Contract Payments,20,Dinglewell & Green Lane,19/01/2016,413285,1432.96,CAP,Whitehouse Construction Ltd,15498N
Gloucester City Council,23UE,General Drainage Works,PY241,Contract Payments,20,River Twyver,19/01/2016,413246,3161,CAP,Rj Contracting (Environmental) Ltd,07429H
Gloucester City Council,23UE,General Drainage Works,PY241,Contract Payments,20,River Twyver Headwall,19/01/2016,413263,700,CAP,Rj Contracting (Environmental) Ltd,07429H
Gloucester City Council,23UE,Gloucester Guildhall,LA100,Cleaning Materials,3600,Duty of Care Compliance Costs,19/01/2016,413227,35,NET,Ocs Group Uk Limited T/A Cannon,06506A
Gloucester City Council,23UE,Gloucester Guildhall,LA100,Security Services Fees,5351,Services February 2016,19/01/2016,413282,92.47,NET,G4s Cash Solutions (Uk) Ltd,04290V
Gloucester City Council,23UE,Grants To Voluntary Sector,FG100,Members Allocation Fund,7100F,Christmas Party 18/12/15,19/01/2016,413254,108.33,NET,Wotton Hall Club,08356R
Gloucester City Council,23UE,Green Garden Waste,HI105,Basic Pay - Temporary Staff,2751,temporary staff w/e 08/01/2016,19/01/2016,413266,573.5,NET,One To One Recruitment,04752H
Gloucester City Council,23UE,REDACTED,REDACTED,REDACTED,REDACTED,REDACTED,19/01/2016,REDACTED,100,NET,REDACTED,REDACTED
Gloucester City Council,23UE,REDACTED,REDACTED,REDACTED,REDACTED,REDACTED,19/01/2016,REDACTED,290.06,NET,REDACTED,REDACTED
Gloucester City Council,23UE,REDACTED,REDACTED,REDACTED,REDACTED,REDACTED,19/01/2016,REDACTED,236.61,NET,REDACTED,REDACTED
Gloucester City Council,23UE,REDACTED,REDACTED,REDACTED,REDACTED,REDACTED,19/01/2016,REDACTED,150,NET,REDACTED,REDACTED
Gloucester City Council,23UE,REDACTED,REDACTED,REDACTED,REDACTED,REDACTED,19/01/2016,REDACTED,890.08,NET,REDACTED,REDACTED
Gloucester City Council,23UE,REDACTED,REDACTED,REDACTED,REDACTED,REDACTED,19/01/2016,REDACTED,140,NET,REDACTED,REDACTED
Gloucester City Council,23UE,REDACTED,REDACTED,REDACTED,REDACTED,REDACTED,19/01/2016,REDACTED,100,NET,REDACTED,REDACTED
Gloucester City Council,23UE,REDACTED,REDACTED,REDACTED,REDACTED,REDACTED,19/01/2016,REDACTED,100,NET,REDACTED,REDACTED
Gloucester City Council,23UE,REDACTED,REDACTED,REDACTED,REDACTED,REDACTED,19/01/2016,REDACTED,552.09,NET,REDACTED,REDACTED
Gloucester City Council,23UE,REDACTED,REDACTED,REDACTED,REDACTED,REDACTED,19/01/2016,REDACTED,382.71,NET,REDACTED,REDACTED
Gloucester City Council,23UE,REDACTED,REDACTED,REDACTED,REDACTED,REDACTED,19/01/2016,REDACTED,246.98,NET,REDACTED,REDACTED
Gloucester City Council,23UE,REDACTED,REDACTED,REDACTED,REDACTED,REDACTED,19/01/2016,REDACTED,100,NET,REDACTED,REDACTED
Gloucester City Council,23UE,Guildhall Events,LA200,Fees For Services Received,5350,Months News,19/01/2016,413226,20.5,NET,W H Smith Ltd,40860M
Gloucester City Council,23UE,Guildhall Events,LA200,Fees For Services Received,5350,Various Items,19/01/2016,413224,310,NET,Proptarts Ltd,16171S
Gloucester City Council,23UE,Homelessness,CH120,Rent In Advance,5516,RIA & DEPOSIT,19/01/2016,413291,272.72,NET,Mvale Properties,15995T
Gloucester City Council,23UE,Homelessness Prevention,CH122,Basic Pay - Temporary Staff,2751,temporary staff w/e 10/01/2016,19/01/2016,413221,645,NET,Greenacre Recruitment Ltd,15817V
Gloucester City Council,23UE,Homelessness Prevention,CH122,Fees For Services Received,5350,RIA & DEPOSIT,19/01/2016,413291,292.5,NET,Mvale Properties,15995T
Gloucester City Council,23UE,REDACTED,REDACTED,REDACTED,REDACTED,REDACTED,19/01/2016,REDACTED,700,NET,REDACTED,REDACTED
Gloucester City Council,23UE,Investment Property,RB500,Consultants Fees,5349,NORTH CHURCHDOWN,19/01/2016,406151,3841.88,NET,Lda Design Consulting Ltd,03500T
Gloucester City Council,23UE,Legal Services,RS200,Contracted Services,6970,Eviction Process Undertaken,19/01/2016,413234,3442.5,NET,Tewkesbury Borough Council,43800C
Gloucester City Council,23UE,REDACTED,REDACTED,REDACTED,REDACTED,REDACTED,19/01/2016,REDACTED,400,NET,REDACTED,REDACTED
Gloucester City Council,23UE,Nms Contract,HI102,Contracted Services,6970,JANUARY 2016 SERVICE FEE,19/01/2016,413153,475904,NET,Enterprise (Aol) Ltd,06695G
Gloucester City Council,23UE,Printing,RP103,Printing,5300,"Civics Xmas card, EH diary sheets",19/01/2016,412565,545,NET,Alpha Colour Printers Ltd,00945B
Gloucester City Council,23UE,Registration Of Electors,RS400,Fees For Services Received,5350,Responses,19/01/2016,413244,488.99,NET,Electoral Reform Services,02206F
Gloucester City Council,23UE,Registration Of Electors,RS400,Postages,5400,Business Mail,19/01/2016,413271,1500.49,NET,Royal Mail S.Wales & South West,35830S
Gloucester City Council,23UE,Retail Market - Landlord,HM300,Trade Refuse Collection,3630,Food Waste,19/01/2016,412951,150,NET,B & S Pointon Ltd,06253G
Gloucester City Council,23UE,The Arbor,HC501,Catering Provisions -Food,5110,Drinks,19/01/2016,413264,48.45,NET,Cellar Supplies Cheltenham Ltd,01563L
Gloucester City Council,23UE,The Arbor,HC501,Catering Provisions -Food,5110,Food,19/01/2016,413275,71.44,NET,Total Produce Gloucester,12645E
Gloucester City Council,23UE,The Arbor,HC501,Catering Provisions -Food,5110,Food,19/01/2016,413276,73.6,NET,Total Produce Gloucester,12645E
Gloucester City Council,23UE,The Arbor,HC501,Catering Provisions -Food,5110,Food,19/01/2016,413277,33.81,NET,Total Produce Gloucester,12645E
Gloucester City Council,23UE,The Arbor,HC501,Catering Provisions -Food,5110,Food,19/01/2016,413286,315.35,NET,Bidvest Foodservice (3663),55585U
Gloucester City Council,23UE,The Arbor,HC501,Other Minor Supplies Services,5590,Flowers,19/01/2016,413274,53.4,NET,Carols Florist,01274X
Gloucester City Council,23UE,Tic Theatre Ticket Sales,LT107,Materials For Sale,5080,Ticket Sales,19/01/2016,412960,586,NET,White Funnel Ltd,16222A
Gloucester City Council,23UE,Tic Theatre Ticket Sales,LT107,Sale Of Goods And Services,9230,Ticket Sales,19/01/2016,412960,-49.92,NET,White Funnel Ltd,16222A
Gloucester City Council,23UE,Tourism Marketing,LT100,Security Services Fees,5351,Services February 2016,19/01/2016,413282,92.47,NET,G4s Cash Solutions (Uk) Ltd,04290V
Gloucester City Council,23UE,Unallocated It,RY525,Contract Payments,20,Uniform Upgrade,19/01/2016,413220,11291.89,CAP,Civica Uk Ltd,10841X
Gloucester City Council,23UE,Utilities,PT502,Electricity Supply,3110,YMCA,19/01/2016,413193,219.88,NET,British Gas Business,08301C
Gloucester City Council,23UE,Utilities,PT502,Gas Supply,3100,1 SEBERT ST,19/01/2016,413192,120.07,NET,British Gas Business,08301C
Gloucester City Council,23UE,Allotments,HI104,Fees For Services Received,5350,allotments tree works,20/01/2016,413037,200,NET,Greenfields Garden Services Ltd,48130G
Gloucester City Council,23UE,Cemeteries,HC300,Operational Materials,5070,Clean all drains,20/01/2016,413257,430,NET,Three Counties Drain Service,44033V
Gloucester City Council,23UE,City Museum And Art Gallery,LM200,Security Services Fees,5351,City Museum alarm call out 3/1/16,20/01/2016,412925,31,NET,Glevum Security Ltd,03249B
Gloucester City Council,23UE,City Museum And Art Gallery,LM200,Sewerage And Environ Charges,3402,OCT-DEC15 SANITARY SERVICES,20/01/2016,412707,43.95,NET,Ocs Group Uk Limited T/A Cannon,06506A
Gloucester City Council,23UE,Crematorium,HC200,Cleaning Materials,3600,Disposal Units,20/01/2016,413262,17.28,NET,Minster Cleaning Services,02158R
Gloucester City Council,23UE,Development Management,PT200,Vocational Training,2970,planning system training 19/11/15,20/01/2016,413350,184,NET,The White Paper Conference Company,16160X
Gloucester City Council,23UE,Folk Museum,LM210,Sewerage And Environ Charges,3402,OCT-DEC15 SANITARY SERVICES,20/01/2016,412699,36.39,NET,Ocs Group Uk Limited T/A Cannon,06506A
Gloucester City Council,23UE,Health And Safety,HD300,Hospitality,5122,room hire 8/12/15,20/01/2016,412490,61.4,NET,Aspire Sports & Cultural Trust,08135V
Gloucester City Council,23UE,Investment Property,RB500,Fire Fighting Equipment,3008,Eastgate Centre Roof Top Car Park,20/01/2016,413014,220,NET,Allcoopers Ltd,52921E
Gloucester City Council,23UE,Investment Property,RB500,Lift Maintenance,3051,Works 04/01/2016,20/01/2016,413267,774.34,NET,Pickerings Europe Ltd,58816U
Gloucester City Council,23UE,Rehousing,CH111,Fees For Services Received,5350,medical report,20/01/2016,413152,20.5,NET,Gloucester Health Access Centre,11611H
Gloucester City Council,23UE,Business Transformation & Tech,RT700,Fees For Services Received,5350,Chris21 Consultancy 10/12/15,21/01/2016,413367,1086.82,NET,Frontier Software Plc,52154G
Gloucester City Council,23UE,Business Transformation & Tech,RT700,Fees For Services Received,5350,ICT Strategy Development,21/01/2016,413259,1900,NET,Socitm Service Ltd,52552P
Gloucester City Council,23UE,Business Transformation & Tech,RT700,Fees For Services Received,5350,ICT Strategy Development Function,21/01/2016,413261,2850,NET,Socitm Service Ltd,52552P
Gloucester City Council,23UE,Civica It Contract,RT270,Contracted Services,6970,FEBRUARY ICT MANAGED SERVICES,21/01/2016,412703,47916.67,NET,Civica Uk Ltd,10841X
Gloucester City Council,23UE,Docks Complex - Catering Servs,RB110,Catering Provisions -Food,5110,Food,21/01/2016,412992,18.96,NET,Total Produce Gloucester,12645E
Gloucester City Council,23UE,Environmental Planning,LM340,Operational Materials,5070,Netheridge nature reserve works,21/01/2016,413145,300,NET,Tcv T/A The Conservation Volunteers,55897V
Gloucester City Council,23UE,Flooding And Drainage,HE306,Maint Of Grounds - General,3030,Robinswood Gardens 09/01/16,21/01/2016,413255,215,NET,Three Counties Drain Service,44033V
Gloucester City Council,23UE,General Drainage Works,PY241,Contract Payments,20,Tipping of load of waste,21/01/2016,413222,4352.56,CAP,Three Counties Drain Service,44033V
Gloucester City Council,23UE,General Drainage Works,PY241,Contract Payments,20,Works carried out to date,21/01/2016,413260,786,CAP,Jba Consulting,15841Y
Gloucester City Council,23UE,Gl1 Emergency Works,RY160,Contract Payments,20,walkway maintenance phase 2,21/01/2016,412780,1102.75,CAP,Central Roofing & Building Services Ltd,59480W
Gloucester City Council,23UE,REDACTED,REDACTED,REDACTED,REDACTED,REDACTED,21/01/2016,REDACTED,100,NET,REDACTED,REDACTED
Gloucester City Council,23UE,REDACTED,REDACTED,REDACTED,REDACTED,REDACTED,21/01/2016,REDACTED,440.84,NET,REDACTED,REDACTED
Gloucester City Council,23UE,Hackney Carriages,HL100,Fees For Services Received,5350,DBS Charges,21/01/2016,412944,352,NET,Disclosure And Barring Service,00119W
Gloucester City Council,23UE,Homelessness,CH120,Removal And Storage Fees,5513,storage fees,21/01/2016,413379,46.29,NET,Advanced Removals & Storage Ltd,57142R
Gloucester City Council,23UE,REDACTED,REDACTED,REDACTED,REDACTED,REDACTED,21/01/2016,REDACTED,484.62,NET,REDACTED,REDACTED
Gloucester City Council,23UE,REDACTED,REDACTED,REDACTED,REDACTED,REDACTED,21/01/2016,REDACTED,525,NET,REDACTED,REDACTED
Gloucester City Council,23UE,Homelessness Prevention,CH122,Grants To Advice Centres,7100,emergency housing Q2 JAN-MAR16,21/01/2016,413151,2546.5,NET,P3 (People Potential Possibilities),13809N
Gloucester City Council,23UE,Investment Property,RB500,Fire Fighting Equipment,3008,Fire Risk Assessment,21/01/2016,413018,220,NET,Allcoopers Ltd,52921E
Gloucester City Council,23UE,Investment Property,RB500,Fire Fighting Equipment,3008,"Fire Risk Assessment, Blackfriars",21/01/2016,413021,220,NET,Allcoopers Ltd,52921E
Gloucester City Council,23UE,Investment Property,RB500,Fire Fighting Equipment,3008,"Fire Risk Assessment, Old Cemetery",21/01/2016,413020,220,NET,Allcoopers Ltd,52921E
Gloucester City Council,23UE,Investment Property,RB500,General Repair/Maint Buildings,3000,Engineer 03/11/2015,21/01/2016,411051,155,NET,Adt Fire & Security Plc,54086D
Gloucester City Council,23UE,Investment Property,RB500,General Repair/Maint Buildings,3000,Engineer 3/1/15 - credited on 31109780,21/01/2016,413395,146.72,NET,Adt Fire & Security Plc,54086D
Gloucester City Council,23UE,Planning Policy,PT300,Basic Pay - Temporary Staff,2751,Temporary staff w/e 03/01/2016,21/01/2016,412937,849.91,NET,The Oyster Partnership Limited,14900T
Gloucester City Council,23UE,Planning Policy,PT300,Basic Pay - Temporary Staff,2751,TEMPORARY STAFF W/E 27/12/15,21/01/2016,412712,1881.8,NET,The Oyster Partnership Limited,14900T
Gloucester City Council,23UE,Pollution Control,HE300,Maint Of Grounds - General,3030,Robinswood Gardens Car Park,21/01/2016,413256,180,NET,Three Counties Drain Service,44033V
Gloucester City Council,23UE,Registration Of Electors,RS400,Printing,5300,December IER Mailings,21/01/2016,412687,652.08,NET,Alpha Response Print & Mail Ltd,03029U
Gloucester City Council,23UE,Accelerator 1 Econ Challenge F,FP302,Other Minor Supplies Services,5590,Workshop Place Subsidies,22/01/2016,412932,120,NET,Gloucestershire Enterprise Ltd,18643A
Gloucester City Council,23UE,Business Transformation & Tech,RT700,Computer Hardware <5000,5420,Charges,22/01/2016,412962,7.55,NET,Bt Payment Services Ltd,56283E
Gloucester City Council,23UE,Business Transformation & Tech,RT700,Mobile Phones,5409,Charges Oct - Dec 2015,22/01/2016,412994,3832.59,NET,Vodafone Ltd,53527D
Gloucester City Council,23UE,Business Transformation & Tech,RT700,Mobile Phones,5409,Pay Monthly Sim & Phones,22/01/2016,412955,181.58,NET,O2 Uk,16206Y
Gloucester City Council,23UE,Business Transformation & Tech,RT700,Printing,5300,Prints as per agreement,22/01/2016,412886,27788.44,NET,Danwood Group Limited,09555G
Gloucester City Council,23UE,Business Transformation & Tech,RT700,Telephones And Fax,5410,Rental Charges 2016,22/01/2016,412970,10,NET,Virgin Media Business,01869B
Gloucester City Council,23UE,Cctv Revenue Budget,FP501,Security Equipment Serv/Repair,3038,CCTV line rental DEC15-MAR16,22/01/2016,413372,11748.12,NET,Bt Redcare,04692U
Gloucester City Council,23UE,Cemeteries,HC300,Basic Pay - Temporary Staff,2751,temporary staff w/e 10/01/2016,22/01/2016,413495,451.61,NET,Premiere Employment Group Ltd,55468Z
Gloucester City Council,23UE,Cemeteries,HC300,Operational Materials,5070,CHAINSAW GLOVES ETC,22/01/2016,412686,157.08,NET,Spaldings,48759Y
Gloucester City Council,23UE,Cemeteries,HC300,Trade Refuse Tipping Fees,6297,SKIP EXCHANGE,22/01/2016,412762,1245,NET,Allstone Sand & Gravel Aggregates Ltd,00940M
Gloucester City Council,23UE,Cemeteries,HC300,Trade Refuse Tipping Fees,6297,SKIP EXCHANGE,22/01/2016,412764,420,NET,Allstone Sand & Gravel Aggregates Ltd,00940M
Gloucester City Council,23UE,Cemeteries,HC300,Trade Refuse Tipping Fees,6297,SKIP EXCHANGE,22/01/2016,412765,360,NET,Allstone Sand & Gravel Aggregates Ltd,00940M
Gloucester City Council,23UE,Civica It Contract,RT270,Contracted Services,6970,Pension Excess Charge November 2015,22/01/2016,413429,798.07,NET,Civica Uk Ltd,10841X
Gloucester City Council,23UE,Client Revs & Bens Contract,RT240,Bailiffs Fees,5368,VAT due on fees,22/01/2016,413469,0,NET,Bristow & Sutor,05450M
Gloucester City Council,23UE,Client Revs & Bens Contract,RT240,Bailiffs Fees,5368,VAT only invoice,22/01/2016,413513,0,NET,Bristow & Sutor,05450M
Gloucester City Council,23UE,Contact Centre,RB300,Stationery,5302,A4 paper,22/01/2016,413370,451,NET,Premier Paper Group Ltd,09166Y
Gloucester City Council,23UE,Contact Centre,RB300,Stationery,5302,Stationery,22/01/2016,413229,52.65,NET,Lyreco Uk Ltd,11746G
Gloucester City Council,23UE,Contact Centre,RB300,Stationery,5302,Stationery,22/01/2016,413369,9.83,NET,Lyreco Uk Ltd,11746G
Gloucester City Council,23UE,Council Streetcare Team,HI101,General Repair/Maint Buildings,3000,Caution Slow Down signage,22/01/2016,413388,34,NET,Severn Signs Ltd,49841D
Gloucester City Council,23UE,Council Streetcare Team,HI101,General Repair/Maint Buildings,3000,Saintbridge allotment signs,22/01/2016,413371,75,NET,Severn Signs Ltd,49841D
Gloucester City Council,23UE,Council Streetcare Team,HI101,Maint Of Grounds - General,3030,Saintbridge pond fence sign,22/01/2016,413389,25,NET,Severn Signs Ltd,49841D
Gloucester City Council,23UE,Countryside Unit,LP201,Major R And M - Vehicles,4010,parts sent direct,22/01/2016,413415,547.49,NET,Loxston Groundcare,14309F
Gloucester City Council,23UE,Development Management,PT200,Advertising And Publicity,5702,Advertisement 31/12/2015,22/01/2016,413428,146.08,NET,Local World Ltd,08556P
Gloucester City Council,23UE,Gates Streets,GY014,Contract Payments,20,Hollie Gazzard Memorial Bench,22/01/2016,413391,5450,CAP,Matthew Burt Ltd,15765N
Gloucester City Council,23UE,General Drainage Works,PY241,Contract Payments,20,River Twyver - Clearance,22/01/2016,413468,2794,CAP,Rj Contracting (Environmental) Ltd,07429H
Gloucester City Council,23UE,General Drainage Works,PY241,Contract Payments,20,"St Oswalds, Clearance",22/01/2016,413467,983,CAP,Rj Contracting (Environmental) Ltd,07429H
Gloucester City Council,23UE,Gloucester Guildhall,LA100,Cleaning Materials,3600,OCT-DEC15 SANITARY SERVICES,22/01/2016,412706,148.2,NET,Ocs Group Uk Limited T/A Cannon,06506A
Gloucester City Council,23UE,Green Garden Waste,HI105,Basic Pay - Temporary Staff,2751,Temporary staff w/e 15/01/16,22/01/2016,413499,573.5,NET,One To One Recruitment,04752H
Gloucester City Council,23UE,Guildhall Events,LA200,Advertising And Publicity,5702,Advertisement 16/01/16,22/01/2016,413426,500.02,NET,Local World Ltd,08556P
Gloucester City Council,23UE,Guildhall Events,LA200,Advertising And Publicity,5702,Advertisements 10/11/15,22/01/2016,413425,120,NET,Local World Ltd,08556P
Gloucester City Council,23UE,REDACTED,REDACTED,REDACTED,REDACTED,REDACTED,22/01/2016,REDACTED,1100,NET,REDACTED,REDACTED
Gloucester City Council,23UE,REDACTED,REDACTED,REDACTED,REDACTED,REDACTED,22/01/2016,REDACTED,1250,NET,REDACTED,REDACTED
Gloucester City Council,23UE,Guildhall Events,LA200,Fees For Services Received,5350,Eliza and the Bear national adverts,22/01/2016,413387,100,NET,Sjm Ltd,48982T
Gloucester City Council,23UE,REDACTED,REDACTED,REDACTED,REDACTED,REDACTED,22/01/2016,REDACTED,550,NET,REDACTED,REDACTED
Gloucester City Council,23UE,Homelessness,CH120,Fees For Services Received,5350,telephone interpreting,22/01/2016,413390,31.5,NET,Prime Production Ltd,06262F
Gloucester City Council,23UE,REDACTED,REDACTED,REDACTED,REDACTED,REDACTED,22/01/2016,REDACTED,20.5,NET,REDACTED,REDACTED
Gloucester City Council,23UE,Homelessness,CH120,Removal And Storage Fees,5513,storage fees,22/01/2016,413380,23.14,NET,Advanced Removals & Storage Ltd,57142R
Gloucester City Council,23UE,Homelessness,CH120,Removal And Storage Fees,5513,storage fees,22/01/2016,413376,117.32,NET,Advanced Removals & Storage Ltd,57142R
Gloucester City Council,23UE,Homelessness,CH120,Removal And Storage Fees,5513,storage fees,22/01/2016,413383,234.64,NET,Advanced Removals & Storage Ltd,57142R
Gloucester City Council,23UE,Homelessness,CH120,Removal And Storage Fees,5513,storage fees,22/01/2016,413377,39.11,NET,Advanced Removals & Storage Ltd,57142R
Gloucester City Council,23UE,Homelessness,CH120,Removal And Storage Fees,5513,storage fees,22/01/2016,413384,234.64,NET,Advanced Removals & Storage Ltd,57142R
Gloucester City Council,23UE,Homelessness,CH120,Removal And Storage Fees,5513,storage fees,22/01/2016,413378,128.57,NET,Advanced Removals & Storage Ltd,57142R
Gloucester City Council,23UE,Homelessness,CH120,Removal And Storage Fees,5513,storage fees,22/01/2016,413385,82.29,NET,Advanced Removals & Storage Ltd,57142R
Gloucester City Council,23UE,Investment Property,RB500,Fire Fighting Equipment,3008,North Warehouse - Fire Risk Assessment,22/01/2016,413013,220,NET,Allcoopers Ltd,52921E
Gloucester City Council,23UE,Led Lighting,RY219,Contract Payments,20,Longsmith St car park LED lights,22/01/2016,413392,7873.12,CAP,Esl,15795D
Gloucester City Council,23UE,Led Lighting,RY219,Contract Payments,20,Longsmith St car park LED lights,22/01/2016,413393,11360.88,CAP,Esl,15795D
Gloucester City Council,23UE,Marketing Gloucester Charges,RC433,Fees For Services Received,5350,Bouncy Castle & Various Items,22/01/2016,413470,225,NET,Major Entertainments Ltd,16231Z
Gloucester City Council,23UE,Rehousing,CH111,Fees For Services Received,5350,medical reports,22/01/2016,413374,345,NET,Now Medical,03468L
Gloucester City Council,23UE,Rehousing,CH111,Fees For Services Received,5350,SEP15-NOV15 data storage & recovery,22/01/2016,413375,1017,NET,Abritas Ltd,10222J
Gloucester City Council,23UE,Retail Market - Landlord,HM300,Window Cleaning,3610,JAN16 markets window cleaning,22/01/2016,413368,140,NET,Cornwall Cleaning Services,14050A
Gloucester City Council,23UE,Shopmobility,PE200,Basic Pay -Duty Managers,1501,Annual Fee 2016,22/01/2016,412901,200,NET,National Federation Of Shopmobility,48106D
Gloucester City Council,23UE,Shopmobility,PE200,Cleaning Materials,3600,JAN16 SANITARY WASTE SERVICES,22/01/2016,412676,12.14,NET,Ocs Group Uk Limited T/A Cannon,06506A
Gloucester City Council,23UE,The Arbor,HC501,Catering Provisions -Food,5110,food,22/01/2016,413476,186.71,NET,Janes Pantry,24500W
Gloucester City Council,23UE,The Arbor,HC501,Catering Provisions -Food,5110,Food,22/01/2016,413287,355.18,NET,Bidvest Foodservice (3663),55585U
Gloucester City Council,23UE,The Arbor,HC501,Catering Provisions -Food,5110,Food w/e 03/01/2016,22/01/2016,412659,87.41,NET,Janes Pantry,24500W
Gloucester City Council,23UE,The Arbor,HC501,Catering Provisions -Food,5110,Food w/e 10/01/2016,22/01/2016,412891,98.08,NET,Janes Pantry,24500W
Gloucester City Council,23UE,The Arbor,HC501,Cleaning Materials,3600,Disposal Units,22/01/2016,413258,34.56,NET,Minster Cleaning Services,02158R
Gloucester City Council,23UE,The Arbor,HC501,Operational Equipment <5000,5012,Various Items,22/01/2016,413077,94.15,NET,Nisbets,55372P
Gloucester City Council,23UE,Utilities,PT502,Electricity Supply,3110,UTILITIES TO JAN 2016,22/01/2016,413351,34612.9,NET,West Mercia Energy,11669Z
Gloucester City Council,23UE,Utilities,PT502,Gas Supply,3100,UTILITIES TO JAN 2016,22/01/2016,413351,-132.24,NET,West Mercia Energy,11669Z
Gloucester City Council,23UE,Vehicles,RS140,Fuel,4012,Fuel,22/01/2016,413272,250.67,NET,Allstar Business Solutions Ltd (Arval),06594A
Gloucester City Council,23UE,Cemeteries,HC300,Routine R And M - Vehicles,4011,Various Items,25/01/2016,413485,309.85,NET,Garden Machinery Gloucester,55641K
Gloucester City Council,23UE,Cemeteries,HC300,Routine R And M - Vehicles,4011,Various Items,25/01/2016,413486,519.69,NET,Garden Machinery Gloucester,55641K
Gloucester City Council,23UE,City Museum And Art Gallery,LM200,Maint Agreements - Fixed Plant,3011,Intruder redcare FEB-APR16,25/01/2016,413555,317.28,NET,Secom Plc,51471A
Gloucester City Council,23UE,Civic Admin And Hospitality,RC210,Hire Of Taxis,4053,Oct & Nov 2015,25/01/2016,413483,225,NET,Chris Hall Chauffeuring,11660U
Gloucester City Council,23UE,Contact Centre,RB300,Postages,5400,Response Services 26/4/14 - 26/12/15,25/01/2016,413498,315.96,NET,Royal Mail S.Wales & South West,35830S
Gloucester City Council,23UE,Council Streetcare Team,HI101,Maint Of Grounds - General,3030,Drainage Works,25/01/2016,413475,200,NET,Mr M G Horton T/A H&T Property Maintenance,09210X
Gloucester City Council,23UE,Development Management,PT200,Advertising And Publicity,5702,Advertisement 14/01/2016,25/01/2016,413479,262.94,NET,Local World Ltd,08556P
Gloucester City Council,23UE,Development Management,PT200,Charges For Services,9300,Refund - 15/01324/NMA,25/01/2016,413558,195,NET,Linden Homes Western,16310C
Gloucester City Council,23UE,Disabled Facilities Grants,CY013,Disabled Facility Grants,74,Disabled Facilities Grant MDF5172,25/01/2016,413560,3667,CAP,Tpg Disableaids,51324R
Gloucester City Council,23UE,REDACTED,REDACTED,REDACTED,REDACTED,REDACTED,25/01/2016,REDACTED,4047,CAP,REDACTED,REDACTED
Gloucester City Council,23UE,Docks Complex - Catering Servs,RB110,Catering Provisions -Food,5110,Food,25/01/2016,413487,12.48,NET,Janes Pantry,24500W
Gloucester City Council,23UE,Economic Development,FP300,Business Grant,7116,Rent Grant,25/01/2016,413481,500,NET,Sherisattic,15495V
Gloucester City Council,23UE,Economic Development,FP300,Business Grant,7116,Voucher Installation,25/01/2016,413491,3000,NET,Rhm Telecommunications Ltd,16228M
Gloucester City Council,23UE,Economic Development,FP300,Business Grant,7116,Works Ethical Direct,25/01/2016,413492,800,NET,Rhm Telecommunications Ltd,16228M
Gloucester City Council,23UE,Environmental Planning,LM340,Operational Materials,5070,Green Flag judges lunch,25/01/2016,413494,30,NET,Gloucestershire Wildlife Trust,15576A
Gloucester City Council,23UE,Flooding And Drainage,HE306,Maint Of Grounds - General,3030,Watercourse Clearence,25/01/2016,413493,270,NET,Rdb Safety Boat Ltd,13507J
Gloucester City Council,23UE,Folk Museum,LM210,Exhibits And Collections,5038,Various Items,25/01/2016,413508,59.55,NET,Millington & Ramstedt Ltd,29815S
Gloucester City Council,23UE,REDACTED,REDACTED,REDACTED,REDACTED,REDACTED,25/01/2016,REDACTED,0,NET,REDACTED,REDACTED
Gloucester City Council,23UE,REDACTED,REDACTED,REDACTED,REDACTED,REDACTED,25/01/2016,REDACTED,225,NET,REDACTED,REDACTED
Gloucester City Council,23UE,Internal Audit,RT300,Fees For Services Received,5350,Internal Audit Shared Service 15/16,25/01/2016,412894,48795,NET,Gloucestershire County Council,18650D
Gloucester City Council,23UE,Investment Property,RB500,Contracts,3720,Grosvenor House S/C in advance,25/01/2016,412266,276.25,NET,Alder King,02367D
Gloucester City Council,23UE,Investment Property,RB500,Contracts,3720,Kigs Quarter S/C in Advance,25/01/2016,412269,2624.25,NET,Alder King,02367D
Gloucester City Council,23UE,Investment Property,RB500,Contracts,3720,Kings Quarter Rent in Advance,25/01/2016,412262,858.45,NET,Alder King,02367D
Gloucester City Council,23UE,Investment Property,RB500,Contracts,3720,Kings Quarter S/C in advance,25/01/2016,412267,3108.5,NET,Alder King,02367D
Gloucester City Council,23UE,Investment Property,RB500,Contracts,3720,Kings Quarter S/C in advance,25/01/2016,412268,3876.25,NET,Alder King,02367D
Gloucester City Council,23UE,Investment Property,RB500,Contracts,3720,Kings Quarter S/C in Advance,25/01/2016,412263,194,NET,Alder King,02367D
Gloucester City Council,23UE,Investment Property,RB500,Contracts,3720,Kings Quarter S/C in Advance,25/01/2016,412264,316.75,NET,Alder King,02367D
Gloucester City Council,23UE,Investment Property,RB500,Contracts,3720,Kings Quarter S/C in Advance,25/01/2016,412265,338.25,NET,Alder King,02367D
Gloucester City Council,23UE,Investment Property,RB500,Fire Fighting Equipment,3008,Fire Extinguishers- North Warehouse,25/01/2016,413463,45,NET,Allcoopers Ltd,52921E
Gloucester City Council,23UE,Investment Property,RB500,Fire Fighting Equipment,3008,Fire Extinguishers - Via Sacra,25/01/2016,413465,33.75,NET,Allcoopers Ltd,52921E
Gloucester City Council,23UE,Investment Property,RB500,Fire Fighting Equipment,3008,Fire Risk Assesment - Crem,25/01/2016,413506,220,NET,Allcoopers Ltd,52921E
Gloucester City Council,23UE,Investment Property,RB500,Fire Fighting Equipment,3008,Fire Risk Assessment - Blackfriars,25/01/2016,413455,220,NET,Allcoopers Ltd,52921E
Gloucester City Council,23UE,Investment Property,RB500,Fire Fighting Equipment,3008,Fire Risk Assessment - Crem,25/01/2016,413453,220,NET,Allcoopers Ltd,52921E
Gloucester City Council,23UE,Investment Property,RB500,Fire Fighting Equipment,3008,Fire Risk Assessment - Eastgate Market,25/01/2016,413450,220,NET,Allcoopers Ltd,52921E
Gloucester City Council,23UE,Investment Property,RB500,Fire Fighting Equipment,3008,Fire Risk Assessment - Folk Museum,25/01/2016,413458,220,NET,Allcoopers Ltd,52921E
Gloucester City Council,23UE,Investment Property,RB500,Fire Fighting Equipment,3008,Fire Risk Assessment - HKP,25/01/2016,413459,220,NET,Allcoopers Ltd,52921E
Gloucester City Council,23UE,Investment Property,RB500,Fire Fighting Equipment,3008,Fire Risk Assessment - King George V,25/01/2016,413454,220,NET,Allcoopers Ltd,52921E
Gloucester City Council,23UE,Investment Property,RB500,Fire Fighting Equipment,3008,Fire Risk Assessment- Longsmith Car P,25/01/2016,413464,220,NET,Allcoopers Ltd,52921E
Gloucester City Council,23UE,Investment Property,RB500,Fire Fighting Equipment,3008,Fire Risk Assessment - PSI109288,25/01/2016,413462,220,NET,Allcoopers Ltd,52921E
Gloucester City Council,23UE,Investment Property,RB500,Fire Fighting Equipment,3008,Fire Risk Assessment- Rangers Centre,25/01/2016,413460,220,NET,Allcoopers Ltd,52921E
Gloucester City Council,23UE,Investment Property,RB500,Fire Fighting Equipment,3008,Fire Risk Assessment - Southgate St,25/01/2016,413461,220,NET,Allcoopers Ltd,52921E
Gloucester City Council,23UE,Investment Property,RB500,Fire Fighting Equipment,3008,Fire Risk Assessment - The Arbor,25/01/2016,413451,220,NET,Allcoopers Ltd,52921E
Gloucester City Council,23UE,Investment Property,RB500,Fire Fighting Equipment,3008,Fire Risk Assessment - The Aviary,25/01/2016,413452,220,NET,Allcoopers Ltd,52921E
Gloucester City Council,23UE,Nms Contract,HI102,Fees For Services Received,5350,Bins,25/01/2016,405645,6920.64,NET,Enterprise (Aol) Ltd,06695G
Gloucester City Council,23UE,Tourism Marketing,LT100,Advertising And Publicity,5702,Business Advertising 2016,25/01/2016,413478,20,NET,Glosjobs Limited,16238J
Gloucester City Council,23UE,Unallocated It,RY525,Contract Payments,20,Financials implementation 15/12/16,25/01/2016,413373,79.2,CAP,Civica Uk Ltd,10841X
Gloucester City Council,23UE,Vehicles,RS140,Fuel,4012,fuel,25/01/2016,413514,181.55,NET,Allstar Business Solutions Ltd (Arval),06594A
Gloucester City Council,23UE,Vehicles,RS140,Routine R And M - Vehicles,4011,Various Items,25/01/2016,413484,259.06,NET,123 Car & Commercial,07651E
Gloucester City Council,23UE,Aspire Admin Charges,LC105,Fees For Services Received,5350,Staff Membership December 15,26/01/2016,413602,609,NET,Aspire Sports & Cultural Trust,08135V
Gloucester City Council,23UE,Business Transformation & Tech,RT700,Internet Service Provider Fees,5429,Business Broadband Jan - Feb 16,26/01/2016,412966,30,NET,Virgin Media Payments Ltd,09376J
Gloucester City Council,23UE,Cemeteries,HC300,Operational Materials,5070,"mop, handle & bucket",26/01/2016,413512,9.19,NET,Safpro Industrial Supply Co,39190W
Gloucester City Council,23UE,Cemeteries,HC300,Operational Materials,5070,Thermals,26/01/2016,413427,38.3,NET,Safpro Industrial Supply Co,39190W
Gloucester City Council,23UE,Cemeteries,HC300,Purch Vehicles/M. Plant <5000,4000,Steel Diggging Shovel,26/01/2016,413626,138.5,NET,Ermin Plant Hire & Services Ltd,14150V
Gloucester City Council,23UE,City Museum And Art Gallery,LM200,Maint Agreements - Fixed Plant,3011,access rental maintenance FEB-APR16,26/01/2016,413556,46.31,NET,Secom Plc,51471A
Gloucester City Council,23UE,City Museum And Art Gallery,LM200,Security Services Fees,5351,Keyholding Service,26/01/2016,413489,210,NET,Glevum Security Ltd,03249B
Gloucester City Council,23UE,Civica Admin Charges,RT105,Postages,5400,Post 04/01 - 15/01 2016,26/01/2016,413612,1425.58,NET,Royal Mail S.Wales & South West,35830S
Gloucester City Council,23UE,Contact Centre,RB300,Publications,5060,Citizens,26/01/2016,413600,158.25,NET,Ymk Supermarket,55281U
Gloucester City Council,23UE,Council Streetcare Team,HI101,General Repair/Maint Buildings,3000,Bird Food,26/01/2016,413617,25,NET,Woody'S Fruit & Veg,11798L
Gloucester City Council,23UE,Council Streetcare Team,HI101,General Repair/Maint Buildings,3000,Number Stickers,26/01/2016,413608,150,NET,Safety-Label.Co.Uk,16225U
Gloucester City Council,23UE,Countryside Unit,LP201,General Repair/Maint Buildings,3000,Washers,26/01/2016,413595,2.3,NET,B&Q Trade Account,06346Y
Gloucester City Council,23UE,Crematorium,HC200,Repair/Maint Of Fixed Plant,3006,safety shoes,26/01/2016,413509,60,NET,Safpro Industrial Supply Co,39190W
Gloucester City Council,23UE,Crematorium,HC200,Repair/Maint Of Fixed Plant,3006,Trays,26/01/2016,413490,405,NET,Teleshore (Uk) Ltd,56819G
Gloucester City Council,23UE,Folk Museum,LM210,Security Services Fees,5351,Keyholding Service,26/01/2016,413489,210,NET,Glevum Security Ltd,03249B
Gloucester City Council,23UE,Guildhall Events,LA200,Fees For Services Received,5350,Distribution of Gloucester Guildhall brochure,26/01/2016,413590,382.5,NET,Glide Media,58829J
Gloucester City Council,23UE,REDACTED,REDACTED,REDACTED,REDACTED,REDACTED,26/01/2016,REDACTED,440,NET,REDACTED,REDACTED
Gloucester City Council,23UE,Homelessness,CH120,Board And Lodging,5515,Emergency Accomodation 17/08/15,26/01/2016,413593,57.5,NET,Gloucestershire County Council,18650D
Gloucester City Council,23UE,Homelessness,CH120,Fees For Services Received,5350,Medical Report,26/01/2016,413599,50,NET,Quedgeley Medical Centre,04984B
Gloucester City Council,23UE,Homelessness,CH120,Other Minor Income,9900,Homelessness Vunerability 18/08/15,26/01/2016,413594,198,NET,Shelter Training,08860H
Gloucester City Council,23UE,Homelessness Prevention,CH122,Basic Pay - Temporary Staff,2751,Temporary staff w/e 17/01/2016,26/01/2016,413591,795.5,NET,Greenacre Recruitment Ltd,15817V
Gloucester City Council,23UE,Homelessness Prevention,CH122,Fees For Services Received,5350,HOUSING DEPOSIT,26/01/2016,413631,530,NET,Chosen Properties Ltd,13398N
Gloucester City Council,23UE,Homelessness Prevention,CH122,Fees For Services Received,5350,Medical Information,26/01/2016,413598,20.5,NET,Saintbridge Surgery,58374F
Gloucester City Council,23UE,Investment Property,RB500,General Repair/Maint Buildings,3000,"Barnwood Chapel, chimney stack removal",26/01/2016,413231,1380,NET,A Murray Masonry,13836K
Gloucester City Council,23UE,Investment Property,RB500,General Repair/Maint Buildings,3000,Emergency Lighting - 23 Eastgate St,26/01/2016,413433,220,NET,Allcoopers Ltd,52921E
Gloucester City Council,23UE,Investment Property,RB500,General Repair/Maint Buildings,3000,Emergency Lighting- 28 Southgate St,26/01/2016,413504,55,NET,Allcoopers Ltd,52921E
Gloucester City Council,23UE,Investment Property,RB500,General Repair/Maint Buildings,3000,Emergency Lighting - Brunswick Road,26/01/2016,413446,220,NET,Allcoopers Ltd,52921E
Gloucester City Council,23UE,Investment Property,RB500,General Repair/Maint Buildings,3000,Emergency Lighting - HKP,26/01/2016,413441,440,NET,Allcoopers Ltd,52921E
Gloucester City Council,23UE,Investment Property,RB500,General Repair/Maint Buildings,3000,Emergency Lighting - Kings Walk,26/01/2016,413432,140.5,NET,Allcoopers Ltd,52921E
Gloucester City Council,23UE,Investment Property,RB500,General Repair/Maint Buildings,3000,Emergency Lighting - Longsmith St,26/01/2016,413444,140.5,NET,Allcoopers Ltd,52921E
Gloucester City Council,23UE,Investment Property,RB500,General Repair/Maint Buildings,3000,Emergency Lighting - North Warehouse,26/01/2016,413447,110,NET,Allcoopers Ltd,52921E
Gloucester City Council,23UE,Investment Property,RB500,General Repair/Maint Buildings,3000,Emergency Lighting - Robinswood Hill,26/01/2016,413445,55,NET,Allcoopers Ltd,52921E
Gloucester City Council,23UE,Investment Property,RB500,General Repair/Maint Buildings,3000,Emergency Lighting - The Park,26/01/2016,413430,80.5,NET,Allcoopers Ltd,52921E
Gloucester City Council,23UE,Investment Property,RB500,General Repair/Maint Buildings,3000,Emergency Lighting - The Park,26/01/2016,413501,108,NET,Allcoopers Ltd,52921E
Gloucester City Council,23UE,Investment Property,RB500,General Repair/Maint Buildings,3000,Emergency Lighting  - Via Sacra,26/01/2016,413503,87.5,NET,Allcoopers Ltd,52921E
Gloucester City Council,23UE,Investment Property,RB500,General Repair/Maint Buildings,3000,Emergency Lighting - Westgate St,26/01/2016,413434,218,NET,Allcoopers Ltd,52921E
Gloucester City Council,23UE,Investment Property,RB500,General Repair/Maint Buildings,3000,Emergency Lighting - Westgate St Car Par,26/01/2016,413431,108,NET,Allcoopers Ltd,52921E
Gloucester City Council,23UE,Investment Property,RB500,General Repair/Maint Buildings,3000,Emergency Lighting - Westgate Street,26/01/2016,413442,55,NET,Allcoopers Ltd,52921E
Gloucester City Council,23UE,Investment Property,RB500,General Repair/Maint Buildings,3000,Fire Alarm System - 1 Hampden Way,26/01/2016,413439,173,NET,Allcoopers Ltd,52921E
Gloucester City Council,23UE,Investment Property,RB500,General Repair/Maint Buildings,3000,Fire Alarm System - 23 Eastgate St,26/01/2016,413438,438,NET,Allcoopers Ltd,52921E
Gloucester City Council,23UE,Investment Property,RB500,General Repair/Maint Buildings,3000,Fire Alarm System - Brunswick Road,26/01/2016,413436,493,NET,Allcoopers Ltd,52921E
Gloucester City Council,23UE,Investment Property,RB500,General Repair/Maint Buildings,3000,Fire Alarm system - Crem,26/01/2016,413437,163,NET,Allcoopers Ltd,52921E
Gloucester City Council,23UE,Investment Property,RB500,General Repair/Maint Buildings,3000,Fire Alarm System - HKP,26/01/2016,413505,603,NET,Allcoopers Ltd,52921E
Gloucester City Council,23UE,Investment Property,RB500,General Repair/Maint Buildings,3000,Fire Alarm System - North Warehouse,26/01/2016,413456,273,NET,Allcoopers Ltd,52921E
Gloucester City Council,23UE,Investment Property,RB500,General Repair/Maint Buildings,3000,Fire Alarm System - Robinswood Hill,26/01/2016,413435,163,NET,Allcoopers Ltd,52921E
Gloucester City Council,23UE,Investment Property,RB500,General Repair/Maint Buildings,3000,Fire Alarm System - Via Sacra,26/01/2016,413440,240.5,NET,Allcoopers Ltd,52921E
Gloucester City Council,23UE,Investment Property,RB500,General Repair/Maint Buildings,3000,Fire Extinguishers - Southgate Street,26/01/2016,413507,20.25,NET,Allcoopers Ltd,52921E
Gloucester City Council,23UE,Investment Property,RB500,General Repair/Maint Buildings,3000,Investigate Fault Zone - HKP,26/01/2016,413448,53,NET,Allcoopers Ltd,52921E
Gloucester City Council,23UE,Investment Property,RB500,General Repair/Maint Buildings,3000,Service Contract 01/12/15 - 30/11/16,26/01/2016,413500,55,NET,Allcoopers Ltd,52921E
Gloucester City Council,23UE,Nms Contract,HI102,Additional Non-Tender Items,6973,Bottle Banks,26/01/2016,413611,1835.3,NET,Fairport Containers Ltd,16191K
Gloucester City Council,23UE,Nms Contract,HI102,Contracted Services,6970,2014/15 annual contract reconciliation,26/01/2016,413011,11143,NET,Enterprise (Aol) Ltd,06695G
Gloucester City Council,23UE,Nms Contract,HI102,Contracted Services,6970,DEC15 top-up recyclate payment,26/01/2016,412888,25856,NET,Enterprise (Aol) Ltd,06695G
Gloucester City Council,23UE,Nms Contract,HI102,Contracted Services,6970,Pension Recharge Dec 15,26/01/2016,413284,10742,NET,Enterprise (Aol) Ltd,06695G
Gloucester City Council,23UE,Nms Contract,HI102,Contracted Services,6970,Top up Recyclate payment 2014/15,26/01/2016,412887,67632,NET,Enterprise (Aol) Ltd,06695G
Gloucester City Council,23UE,Nms Contract,HI102,Fees For Services Received,5350,Black Wheeled Bins,26/01/2016,402992,10596.96,NET,Enterprise (Aol) Ltd,06695G
Gloucester City Council,23UE,Nms Contract,HI102,Fees For Services Received,5350,Black Wheeled Bins,26/01/2016,408542,7726.32,NET,Enterprise (Aol) Ltd,06695G
Gloucester City Council,23UE,Nms Contract,HI102,Fees For Services Received,5350,domestic waste bins & recycling boxes,26/01/2016,404716,18986.01,NET,Enterprise (Aol) Ltd,06695G
Gloucester City Council,23UE,Printing,RP103,Printing,5300,Print Room Sales November 2015,26/01/2016,413423,1493.45,NET,Alpha Colour Printers Ltd,00945B
Gloucester City Council,23UE,Rehousing,CH111,Fees For Services Received,5350,Medical Report,26/01/2016,413601,20.5,NET,Rosebank Health,03041E
Gloucester City Council,23UE,Statutory Testing,RS310,General Repair/Maint Buildings,3000,Buying of Credit Card,26/01/2016,413466,27.81,NET,Allcoopers Ltd,52921E
Gloucester City Council,23UE,The Arbor,HC501,Catering Provisions -Food,5110,Food,26/01/2016,413619,24.08,NET,Total Produce Gloucester,12645E
Gloucester City Council,23UE,The Arbor,HC501,Catering Provisions -Food,5110,Food,26/01/2016,413620,33.31,NET,Total Produce Gloucester,12645E
Gloucester City Council,23UE,The Arbor,HC501,Catering Provisions -Food,5110,Food,26/01/2016,413621,340.44,NET,Bidvest Foodservice (3663),55585U
Gloucester City Council,23UE,The Arbor,HC501,Catering Provisions -Food,5110,Food,26/01/2016,413622,299.07,NET,Bidvest Foodservice (3663),55585U
Gloucester City Council,23UE,The Arbor,HC501,Catering Provisions -Food,5110,Food,26/01/2016,413623,212.31,NET,Bidvest Foodservice (3663),55585U
Gloucester City Council,23UE,The Arbor,HC501,Catering Provisions -Food,5110,Food,26/01/2016,413625,83.94,NET,Total Produce Gloucester,12645E
Gloucester City Council,23UE,The Arbor,HC501,Catering Provisions -Food,5110,Milk,26/01/2016,413618,6.6,NET,Total Produce Gloucester,12645E
Gloucester City Council,23UE,The Arbor,HC501,Operational Equipment <5000,5012,Supply & Fit Parts,26/01/2016,413609,133.25,NET,Space Catering Equipment Ltd,42828RV
Gloucester City Council,23UE,The Arbor,HC501,Other Minor Supplies Services,5590,Flowers,26/01/2016,413615,50,NET,Carols Florist,01274X
Gloucester City Council,23UE,Tic Rovercard Sales,LT101,Materials For Sale,5080,Tickets December 2015,26/01/2016,413597,3456,NET,Stagecoach Services Ltd,56554W
Gloucester City Council,23UE,Tic Rovercard Sales,LT101,Sale Of Goods And Services,9230,Tickets December 2015,26/01/2016,413597,-288,NET,Stagecoach Services Ltd,56554W
Gloucester City Council,23UE,REDACTED,REDACTED,REDACTED,REDACTED,REDACTED,26/01/2016,REDACTED,372,NET,REDACTED,REDACTED
Gloucester City Council,23UE,REDACTED,REDACTED,REDACTED,REDACTED,REDACTED,26/01/2016,REDACTED,-31,NET,REDACTED,REDACTED
Gloucester City Council,23UE,Tourism Marketing,LT100,Other Minor Supplies Services,5590,Keyholding Service,26/01/2016,413489,210,NET,Glevum Security Ltd,03249B
Gloucester City Council,23UE,Utilities,PT502,Electricity Supply,3110,UTILITIES TO JAN 2016,26/01/2016,413557,1669.74,NET,West Mercia Energy,11669Z
Gloucester City Council,23UE,Utilities,PT502,Gas Supply,3100,UTILITIES TO JAN 2016,26/01/2016,413557,17940.02,NET,West Mercia Energy,11669Z
Gloucester City Council,23UE,Business Transformation & Tech,RT700,Mobile Phones,5409,acct 5500385 DEC15,27/01/2016,413418,95.04,NET,O2 Uk,16206Y
Gloucester City Council,23UE,Business Transformation & Tech,RT700,Mobile Phones,5409,acct 5500385 DEC15,27/01/2016,413419,72.38,NET,O2 Uk,16206Y
Gloucester City Council,23UE,Business Transformation & Tech,RT700,Mobile Phones,5409,acct 5500385 JAN16,27/01/2016,413417,110,NET,O2 Uk,16206Y
Gloucester City Council,23UE,Business Transformation & Tech,RT700,Mobile Phones,5409,acct 5500385 JAN16,27/01/2016,413420,101.19,NET,O2 Uk,16206Y
Gloucester City Council,23UE,Business Transformation & Tech,RT700,Mobile Phones,5409,acct 5500388 JAN16,27/01/2016,413421,154.65,NET,O2 Uk,16206Y
Gloucester City Council,23UE,Cemeteries,HC300,Operational Materials,5070,Waterproof Jackets,27/01/2016,413589,71.7,NET,Safpro Industrial Supply Co,39190W
Gloucester City Council,23UE,City Museum And Art Gallery,LM200,Advertising And Publicity,5702,signs for museum,27/01/2016,413150,121.75,NET,Paddock Print,03014H
Gloucester City Council,23UE,Council Streetcare Team,HI101,General Repair/Maint Buildings,3000,VAT due on invoice 1010D,27/01/2016,413665,0,NET,Safety-Label.Co.Uk,16225U
Gloucester City Council,23UE,Eastgate Rooftop Emerg Works,RY159,Contract Payments,20,retention eastgate car park phase 4,27/01/2016,413510,288.67,CAP,Rio Asphalt & Paving Co Ltd,12302R
Gloucester City Council,23UE,Guildhall Bar And Caf�,LA210,Catering Provisions -Food,5110,Food w/e 17/01/2016,27/01/2016,413477,86.5,NET,Janes Pantry,24500W
Gloucester City Council,23UE,Homelessness Prevention,CH122,Fees For Services Received,5350,housing deposit,27/01/2016,413666,450,NET,Cgt Lettings Ltd,09004C
Gloucester City Council,23UE,Investment Property,RB500,General Repair/Maint Buildings,3000,Emergency Lighting - Hampden Way,27/01/2016,413630,55,NET,Allcoopers Ltd,52921E
Gloucester City Council,23UE,Investment Property,RB500,General Repair/Maint Buildings,3000,Fire Alarm System - Southgate Street,27/01/2016,413629,163,NET,Allcoopers Ltd,52921E
Gloucester City Council,23UE,Statutory Testing,RS310,Fees For Services Received,5350,Break Glass Panels,27/01/2016,413449,15.87,NET,Allcoopers Ltd,52921E
Gloucester City Council,23UE,REDACTED,REDACTED,REDACTED,REDACTED,REDACTED,27/01/2016,REDACTED,38017,CAP,REDACTED,REDACTED
Gloucester City Council,23UE,Business Transformation & Tech,RT700,Computer Software <5000,5425,Call Charges December 2015,28/01/2016,412971,2494.15,NET,Gamma Business Communications,10260A
Gloucester City Council,23UE,Business Transformation & Tech,RT700,Computer Software <5000,5425,call charges Leased Lines JAN16,28/01/2016,413034,3972.19,NET,Gamma Business Communications,10260A
Gloucester City Council,23UE,Business Transformation & Tech,RT700,Fees For Services Received,5350,ICT Strategy Development,28/01/2016,413689,475,NET,Socitm Service Ltd,52552P
Gloucester City Council,23UE,Business Transformation & Tech,RT700,Internet Service Provider Fees,5429,Broadband Jan - Feb 16,28/01/2016,412967,39,NET,Virgin Media Payments Ltd,09376J
Gloucester City Council,23UE,Business Transformation & Tech,RT700,Mobile Phones,5409,Charges December 2015,28/01/2016,412899,1011.57,NET,Everything Everywhere Ltd (T-Mobile),57543S
Gloucester City Council,23UE,Business Transformation & Tech,RT700,Mobile Phones,5409,Charges January 16,28/01/2016,412972,18.17,NET,Everything Everywhere Ltd (T-Mobile),57543S
Gloucester City Council,23UE,Cemeteries,HC300,Basic Pay - Temporary Staff,2751,temporary staff w/e 17/01/16,28/01/2016,413684,439.88,NET,Premiere Employment Group Ltd,55468Z
Gloucester City Council,23UE,Cemeteries,HC300,Basic Pay - Temporary Staff,2751,temporary staff w/e 17/01/16,28/01/2016,413685,439.88,NET,Premiere Employment Group Ltd,55468Z
Gloucester City Council,23UE,Civica Contract Revs & Bens,RT250,Contracted Services,6970,Pension Excess November 2015,28/01/2016,413471,12089.88,NET,Civica Uk Ltd,10841X
Gloucester City Council,23UE,Civic Admin And Hospitality,RC210,Other Minor Supplies Services,5590,Parking Ticket,28/01/2016,413681,20,NET,Lookers Leasing Limited,15719W
Gloucester City Council,23UE,Contact Centre,RB300,Stationery,5302,Stationary,28/01/2016,413682,25.64,NET,Lyreco Uk Ltd,11746G
Gloucester City Council,23UE,Council Streetcare Team,HI101,General Repair/Maint Buildings,3000,Saintbridge Balancing Pool,28/01/2016,413706,342,NET,Greenfields Garden Services Ltd,48130G
Gloucester City Council,23UE,Council Streetcare Team,HI101,Routine R And M - Vehicles,4011,repairs to Scarab,28/01/2016,412594,1710.5,NET,Scarab Sweepers Ltd,16174K
Gloucester City Council,23UE,Countryside Unit,LP201,Livestock Foodstuff,5841,Various Items,28/01/2016,413603,27.98,NET,Countrywide Farmers,55687J
Gloucester City Council,23UE,Countryside Unit,LP201,Maint Of Grounds - General,3030,Various Items,28/01/2016,413603,7.08,NET,Countrywide Farmers,55687J
Gloucester City Council,23UE,REDACTED,REDACTED,REDACTED,REDACTED,REDACTED,28/01/2016,REDACTED,220,NET,REDACTED,REDACTED
Gloucester City Council,23UE,Development Management,PT200,Advertising And Publicity,5702,Advertisement 21/01/2016,28/01/2016,413700,379.81,NET,Local World Ltd,08556P
Gloucester City Council,23UE,Guildhall Events,LA200,Advertising And Publicity,5702,Logo Mat,28/01/2016,413688,787.8,NET,Mats Nationwide Ltd,16244P
Gloucester City Council,23UE,Guildhall Lettings,LA400,Events Income,9202,Studio 2 - Client Sessions,28/01/2016,413719,30,NET,Gloucestershire Music Makers,13755L
Gloucester City Council,23UE,Guildhall Lettings,LA400,Sale Of Goods And Services,9230,Studio 2 - Client Sessions,28/01/2016,413719,-6,NET,Gloucestershire Music Makers,13755L
Gloucester City Council,23UE,Homelessness,CH120,Fees For Services Received,5350,Medical Report,28/01/2016,413606,20.5,NET,Gloucester Health Access Centre,11611H
Gloucester City Council,23UE,Homelessness,CH120,General Repair/Maint Buildings,3000,Manager Chair,28/01/2016,413709,104,NET,Bestbuy Office Chairs,15521W
Gloucester City Council,23UE,REDACTED,REDACTED,REDACTED,REDACTED,REDACTED,28/01/2016,REDACTED,600,NET,REDACTED,REDACTED
Gloucester City Council,23UE,REDACTED,REDACTED,REDACTED,REDACTED,REDACTED,28/01/2016,REDACTED,650,NET,REDACTED,REDACTED
Gloucester City Council,23UE,Investment Property,RB500,General Repair/Maint Buildings,3000,Engineers 19/06/2015,28/01/2016,404578,1008,NET,Airvent Systems Limited,51073T
Gloucester City Council,23UE,Investment Property,RB500,General Repair/Maint Buildings,3000,Longsmith Street emergency lighting,28/01/2016,413443,140.5,NET,Allcoopers Ltd,52921E
Gloucester City Council,23UE,Investment Property,RB500,Lift Maintenance,3051,Works according to quote - 08/01/16,28/01/2016,413712,1398.25,NET,Pickerings Europe Ltd,58816U
Gloucester City Council,23UE,Kings Quarter,RY146,Contract Payments,20,The Bus Station works,28/01/2016,413627,450,CAP,Mpl Wrought Iron Llp,03907P
Gloucester City Council,23UE,Safer Stronger Communities,FP841,Other Minor Supplies Services,5590,Glos Safety Hosting,28/01/2016,413677,1075,NET,Icon.Net,52505Z
Gloucester City Council,23UE,Safer Stronger Communities,FP841,Other Minor Supplies Services,5590,Printing & Distribution Costs 2016,28/01/2016,413676,600,NET,Gloucester And District Neighbourhood Watch,16246K
Gloucester City Council,23UE,Business Transformation & Tech,RT700,Printing,5300,Rental Charges,29/01/2016,413422,210,NET,Stanford Marsh Ltd,51139M
Gloucester City Council,23UE,Cemeteries,HC300,Clothing,5200,Safety Wellingtons,29/01/2016,413699,15.5,NET,Safpro Industrial Supply Co,39190W
Gloucester City Council,23UE,Cemeteries,HC300,Operational Materials,5070,Boots,29/01/2016,413678,79.5,NET,Spaldings,48759Y
Gloucester City Council,23UE,Cemeteries,HC300,Operational Materials,5070,Various Items,29/01/2016,413679,102.08,NET,Spaldings,48759Y
Gloucester City Council,23UE,Cemeteries,HC300,Water Supply,3400,Pole Pruner,29/01/2016,413680,552.2,NET,Spaldings,48759Y
Gloucester City Council,23UE,REDACTED,REDACTED,REDACTED,REDACTED,REDACTED,29/01/2016,REDACTED,715,NET,REDACTED,REDACTED
Gloucester City Council,23UE,Coll Fund Revenue Account,ZC100,County Council Precept,7460,PRECEPT PAYMENT FEBRUARY 2016,29/01/2016,413790,3893978.2,NET,Gloucestershire County Council,18650D
Gloucester City Council,23UE,Coll Fund Revenue Account,ZC100,Nndr Central Share,7474,BRR POOLING PAYMENT FEB16,29/01/2016,413789,421339,NET,Gloucestershire County Council,18650D
Gloucester City Council,23UE,Coll Fund Revenue Account,ZC100,Nndr Tariff,7473,BRR POOLING PAYMENT FEB16,29/01/2016,413788,1320307,NET,Stroud District Council,74737T
Gloucester City Council,23UE,Coll Fund Revenue Account,ZC100,Police Precept,7461,PRECEPT PAYMENT FEBRUARY 2016,29/01/2016,413791,741766.3,NET,"Police & Crime Commissioner, Gloucestershire",49521B
Gloucester City Council,23UE,Disabled Facilities Grants,CY013,Disabled Facility Grants,74,Disabled Facilities Grant MDF5159,29/01/2016,413754,3035.65,CAP,Mears Home Improvement Ltd,00096G
Gloucester City Council,23UE,Disabled Facilities Grants,CY013,Disabled Facility Grants,74,Disabled Facilities Grant - MDF5083,29/01/2016,413755,15745,CAP,Mears Home Improvement Ltd,00096G
Gloucester City Council,23UE,Disabled Facilities Grants,CY013,Disabled Facility Grants,74,Disabled Facilities Grant - MDF5128,29/01/2016,413756,7500,CAP,Mears Home Improvement Ltd,00096G
Gloucester City Council,23UE,Disabled Facilities Grants,CY013,Disabled Facility Grants,74,Disabled Facilities Grant - MDF5154,29/01/2016,413753,8825,CAP,Terry Group Ltd,13844L
Gloucester City Council,23UE,Disabled Facilities Grants,CY013,Disabled Facility Grants,74,Disabled Facilities Grant - MDF5161,29/01/2016,413752,5411.57,CAP,Mears Home Improvement Ltd,00096G
Gloucester City Council,23UE,Employers Pension Contribs,ZR355,Pension Contribs Incl Backf,2901,pension deficit for GCC,29/01/2016,413787,217666.66,NET,Gloucestershire County Council,10614L
Gloucester City Council,23UE,Gl1 Emergency Works,RY160,Contract Payments,20,trial core sample GL1 roof,29/01/2016,413169,485,CAP,Central Roofing & Building Services Ltd,59480W
Gloucester City Council,23UE,REDACTED,REDACTED,REDACTED,REDACTED,REDACTED,29/01/2016,REDACTED,750,NET,REDACTED,REDACTED
Gloucester City Council,23UE,REDACTED,REDACTED,REDACTED,REDACTED,REDACTED,29/01/2016,REDACTED,366.67,NET,REDACTED,REDACTED
Gloucester City Council,23UE,REDACTED,REDACTED,REDACTED,REDACTED,REDACTED,29/01/2016,REDACTED,489.44,NET,REDACTED,REDACTED
Gloucester City Council,23UE,REDACTED,REDACTED,REDACTED,REDACTED,REDACTED,29/01/2016,REDACTED,368.2,NET,REDACTED,REDACTED
Gloucester City Council,23UE,REDACTED,REDACTED,REDACTED,REDACTED,REDACTED,29/01/2016,REDACTED,400,NET,REDACTED,REDACTED
Gloucester City Council,23UE,REDACTED,REDACTED,REDACTED,REDACTED,REDACTED,29/01/2016,REDACTED,900,NET,REDACTED,REDACTED
Gloucester City Council,23UE,Parks Contract Management,LP100,Maint Of Grounds - General,3030,Greyhound Gardens,29/01/2016,413683,400,NET,Greenfields Garden Services Ltd,48130G
Gloucester City Council,23UE,Statutory Testing,RS310,General Repair/Maint Buildings,3000,Engineer 27/10/15,29/01/2016,413480,135,NET,Adt Fire & Security Plc,54086D
Gloucester City Council,23UE,Statutory Testing,RS310,General Repair/Maint Buildings,3000,Fire Alarm Batteries,29/01/2016,413715,63.25,NET,Allcoopers Ltd,52921E
Gloucester City Council,23UE,Countryside Unit,LP201,Contract Cleaning,3620,ranger centre cleaning DEc & Jan 16,01/02/2016,413363,260,NET,Cv Fisher Cleaning Services,14907C
Gloucester City Council,23UE,Longlevens Np Active Together,LY161,Contract Payments,20,Various Items,01/02/2016,413708,248,CAP,Wybone Limited,13540L
Gloucester City Council,23UE,Tourism Marketing,LT100,Exhibits And Collections,5038,vinyl graphics & fitting,01/02/2016,413511,156,NET,Squirty Ink,13834P
Gloucester City Council,23UE,Financial Services,RT200,Fees For Services Received,5350,Engineering - 1 Hampen Way,,413457,108,NET,Allcoopers Ltd,52921E
Gloucester City Council,23UE,Financial Services,RT200,Fees For Services Received,5350,Hours,,413687,20,NET,Buildbase Ltd,03692D
Gloucester City Council,23UE,Financial Services,RT200,Fees For Services Received,5350,Subscribing Membership,,413686,745,NET,Bsi Business Information,01425A
,,,,,,,,Sum:,15584645.06,,,
